{"text_format":"1","workbook":"xlsx","n_sheets":4,"sheets":["INFO","MAP","DATA","SYSTEM"],"not_rendered":{"charts":0,"images":7,"macros":1,"external_links":0,"defined_names":1,"comments":0,"pivot_tables":1},"unopened":[],"bounds":{"document_bytes":16777216,"sheet_cells":100000,"rows_first":2000,"rows_last":500,"rows_between":2000,"halvings":0,"cell_chars":16384,"cell_head_chars":4096},"cells_cut":0,"cells_raw":0,"read":"whole","date_system":"1900"}

{"sheet":"INFO","index":0,"n_rows":111,"n_cols":3,"rows_kept":111,"cut":false,"hidden":false,"merged":[]}
[]
[null,null,"ISG - URL mapping"]
[]
[null,1,"Click ‘Enable content’ to be able to use this Excel file."]
[]
[]
[]
[]
[]
[]
[]
[]
[]
[]
[]
[]
[]
[]
[]
[]
[]
[]
[]
[]
[]
[]
[]
[]
[]
[]
[]
[null,null,"Click ‘Yes’ to make this file a trusted document."]
[]
[]
[]
[]
[]
[]
[]
[]
[]
[]
[]
[]
[]
[]
[]
[null,2,"Go to the MAP worksheet. At the top right click the ‘Language selector’ button and select from the drop-down menu the language you used for bookmarks on the old ISG website."]
[null,null,"Click \"OK\"."]
[]
[]
[]
[]
[]
[]
[]
[]
[]
[]
[]
[]
[]
[]
[]
[]
[]
[]
[]
[]
[]
[null,null,"Links should be listed in ascending order of number. If not, click the arrow in the upper right corner of the 'Old website' column and ‘sort A to Z’."]
[]
[]
[]
[]
[]
[]
[]
[]
[]
[]
[]
[]
[]
[]
[]
[]
[null,3,"Find the URL of your bookmark in the \"Old website\" column."]
[null,null,"Copy the corresponding link from the \"New website\" column to update your bookmarks."]
[]
[]
[]
[]
[]
[]
[]
[]
[]
[]
[]
[]
[]
[]
[]
[]
[]
[]
[]
[]
[]
[null,null,"You can also use the search tool included in the filter in the ‘Old site’ column.\nEnter your URL, or part of it (the ‘number’ part), in the search box and click ‘OK’."]

{"sheet":"MAP","index":1,"n_rows":139,"n_cols":3,"rows_kept":139,"cut":false,"hidden":false,"merged":[]}
[]
["Lang.","en"]
[]
["Count of URL"]
["Old website","New website","Total"]
["https://publications.europa.eu/code/en/en-000800.htm","https://style-guide.europa.eu/en/content/-/isg/topic?identifier= references",1]
["https://publications.europa.eu/code/en/en-000900.htm","https://style-guide.europa.eu/en/content/-/isg/topic?identifier= introduction",1]
["https://publications.europa.eu/code/en/en-10000.htm","https://style-guide.europa.eu/en/content/-/isg/topic?identifier= part-one-official-journal",1]
["https://publications.europa.eu/code/en/en-10100.htm","https://style-guide.europa.eu/en/content/-/isg/topic?identifier= preamble",1]
["https://publications.europa.eu/code/en/en-110100.htm","https://style-guide.europa.eu/en/content/-/isg/topic?identifier= 1.1-general-structure",1]
["https://publications.europa.eu/code/en/en-110200.htm","https://style-guide.europa.eu/en/content/-/isg/topic?identifier= 1.2.1-classification-of-acts",1]
["https://publications.europa.eu/code/en/en-110202.htm","https://style-guide.europa.eu/en/content/-/isg/topic?identifier= 1.2.2-numbering-of-acts",1]
["https://publications.europa.eu/code/en/en-110203.htm","https://style-guide.europa.eu/en/content/-/isg/topic?identifier= 1.2.3-contents",1]
["https://publications.europa.eu/code/en/en-110300.htm","https://style-guide.europa.eu/en/content/-/isg/topic?identifier= 1.3.1-classification-of-documents",1]
["https://publications.europa.eu/code/en/en-110302.htm","https://style-guide.europa.eu/en/content/-/isg/topic?identifier= 1.3.2-numbering-of-documents",1]
["https://publications.europa.eu/code/en/en-110303.htm","https://style-guide.europa.eu/en/content/-/isg/topic?identifier= 1.3.3-contents",1]
["https://publications.europa.eu/code/en/en-120000.htm","https://style-guide.europa.eu/en/content/-/isg/topic?identifier= 2-structure-legal-act",1]
["https://publications.europa.eu/code/en/en-120100.htm","https://style-guide.europa.eu/en/content/-/isg/topic?identifier= 2.1-title",1]
["https://publications.europa.eu/code/en/en-120200.htm","https://style-guide.europa.eu/en/content/-/isg/topic?identifier= 2.2-preamble",1]
["https://publications.europa.eu/code/en/en-120300.htm","https://style-guide.europa.eu/en/content/-/isg/topic?identifier= 2.3-articles-enacting-terms",1]
["https://publications.europa.eu/code/en/en-120400.htm","https://style-guide.europa.eu/en/content/-/isg/topic?identifier= 2.4-compulsory-character-of-regulations",1]
["https://publications.europa.eu/code/en/en-120500.htm","https://style-guide.europa.eu/en/content/-/isg/topic?identifier= 2.5-concluding-formulas",1]
["https://publications.europa.eu/code/en/en-120600.htm","https://style-guide.europa.eu/en/content/-/isg/topic?identifier= 2.6-annexes",1]
["https://publications.europa.eu/code/en/en-120700.htm","https://style-guide.europa.eu/en/content/-/isg/topic?identifier= 2.7-subdivisions-of-acts",1]
["https://publications.europa.eu/code/en/en-130000.htm","https://style-guide.europa.eu/en/content/-/isg/topic?identifier= 3-rules-on-drafting-documents",1]
["https://publications.europa.eu/code/en/en-130100.htm","https://style-guide.europa.eu/en/content/-/isg/topic?identifier= 3.1-references-to-the-official-journal",1]
["https://publications.europa.eu/code/en/en-130200.htm","https://style-guide.europa.eu/en/content/-/isg/topic?identifier= 3.2.1-forms-of-title",1]
["https://publications.europa.eu/code/en/en-130202.htm","https://style-guide.europa.eu/en/content/-/isg/topic?identifier= 3.2.2-referring-to-other-acts",1]
["https://publications.europa.eu/code/en/en-130203.htm","https://style-guide.europa.eu/en/content/-/isg/topic?identifier= 3.2.3-references-to-subdivisions-of-an-act",1]
["https://publications.europa.eu/code/en/en-130204.htm","https://style-guide.europa.eu/en/content/-/isg/topic?identifier= 3.2.4-references-to-amendments-to-an-act",1]
["https://publications.europa.eu/code/en/en-130300.htm","https://style-guide.europa.eu/en/content/-/isg/topic?identifier= 3.3.1-amendments-in-the-text",1]
["https://publications.europa.eu/code/en/en-130302.htm","https://style-guide.europa.eu/en/content/-/isg/topic?identifier= 3.3.2-additions-and-numbering",1]
["https://publications.europa.eu/code/en/en-130400.htm","https://style-guide.europa.eu/en/content/-/isg/topic?identifier= 3.4.1-order-of-treaties",1]
["https://publications.europa.eu/code/en/en-130500.htm","https://style-guide.europa.eu/en/content/-/isg/topic?identifier= 3.5.1-listed-points-punctuation",1]
["https://publications.europa.eu/code/en/en-130600.htm","https://style-guide.europa.eu/en/content/-/isg/topic?identifier= 3.6-definition-expression-or-word",1]
["https://publications.europa.eu/code/en/en-130700.htm","https://style-guide.europa.eu/en/content/-/isg/topic?identifier= 3.7-international-agreements",1]
["https://publications.europa.eu/code/en/en-130800-tab.htm","https://style-guide.europa.eu/en/content/-/isg/topic?identifier= summary-tables",1]
["https://publications.europa.eu/code/en/en-200000.htm","https://style-guide.europa.eu/en/content/-/isg/topic?identifier= part-two-general-publications",1]
["https://publications.europa.eu/code/en/en-240000.htm","https://style-guide.europa.eu/en/content/-/isg/topic?identifier= 4.1.1-authors-and-the-publications-office",1]
["https://publications.europa.eu/code/en/en-240100.htm","https://style-guide.europa.eu/en/content/-/isg/topic?identifier= 4.1.1-authors-and-the-publications-office",1]
["https://publications.europa.eu/code/en/en-240102.htm","https://style-guide.europa.eu/en/content/-/isg/topic?identifier= 4.1.2-project-management-publications-office",1]
["https://publications.europa.eu/code/en/en-240103.htm","https://style-guide.europa.eu/en/content/-/isg/topic?identifier= 4.1.3-proofreading-publications-office",1]
["https://publications.europa.eu/code/en/en-240200.htm","https://style-guide.europa.eu/en/content/-/isg/topic?identifier= 4.2-original-documents",1]
["https://publications.europa.eu/code/en/en-240202.htm","https://style-guide.europa.eu/en/content/-/isg/topic?identifier= 4.2.2-logical-structure-of-documents",1]
["https://publications.europa.eu/code/en/en-240203.htm","https://style-guide.europa.eu/en/content/-/isg/topic?identifier= 4.2.3-text-preparation",1]
["https://publications.europa.eu/code/en/en-240204.htm","https://style-guide.europa.eu/en/content/-/isg/topic?identifier= 4.2.4-camera-ready-documents",1]
["https://publications.europa.eu/code/en/en-240300.htm","https://style-guide.europa.eu/en/content/-/isg/topic?identifier= 4.3-publication-types",1]
["https://publications.europa.eu/code/en/en-240400.htm","https://style-guide.europa.eu/en/content/-/isg/topic?identifier= 4.4-identifiers-assigned-by-publications-office",1]
["https://publications.europa.eu/code/en/en-240500.htm","https://style-guide.europa.eu/en/content/-/isg/topic?identifier= 4.5-identifier-assigned-by-court-of-justice",1]
["https://publications.europa.eu/code/en/en-250000.htm","https://style-guide.europa.eu/en/content/-/isg/topic?identifier= 5.1.1-components",1]
["https://publications.europa.eu/code/en/en-250100.htm","https://style-guide.europa.eu/en/content/-/isg/topic?identifier= 5.1.1-components",1]
["https://publications.europa.eu/code/en/en-250102.htm","https://style-guide.europa.eu/en/content/-/isg/topic?identifier= 5.1.2-use-of-colour-on-covers",1]
["https://publications.europa.eu/code/en/en-250200.htm","https://style-guide.europa.eu/en/content/-/isg/topic?identifier= 5.2-title-page",1]
["https://publications.europa.eu/code/en/en-250300.htm","https://style-guide.europa.eu/en/content/-/isg/topic?identifier= 5.3.1-components",1]
["https://publications.europa.eu/code/en/en-250302.htm","https://style-guide.europa.eu/en/content/-/isg/topic?identifier= 5.3.2-printed-paper-product",1]
["https://publications.europa.eu/code/en/en-250400.htm","https://style-guide.europa.eu/en/content/-/isg/topic?identifier= 5.4.1-reproduction-rights",1]
["https://publications.europa.eu/code/en/en-250402.htm","https://style-guide.europa.eu/en/content/-/isg/topic?identifier= 5.4.2-copyright-qualification",1]
["https://publications.europa.eu/code/en/en-250403.htm","https://style-guide.europa.eu/en/content/-/isg/topic?identifier= 5.4.3-legal-notice",1]
["https://publications.europa.eu/code/en/en-250404.htm","https://style-guide.europa.eu/en/content/-/isg/topic?identifier= 5.4.4-reproduction-of-artistic-elements",1]
["https://publications.europa.eu/code/en/en-250500.htm","https://style-guide.europa.eu/en/content/-/isg/topic?identifier= 5.5.1-dedication",1]
["https://publications.europa.eu/code/en/en-250600.htm","https://style-guide.europa.eu/en/content/-/isg/topic?identifier= 5.6-divisions-of-the-text",1]
["https://publications.europa.eu/code/en/en-250700.htm","https://style-guide.europa.eu/en/content/-/isg/topic?identifier= 5.7-listed-points",1]
["https://publications.europa.eu/code/en/en-250800.htm","https://style-guide.europa.eu/en/content/-/isg/topic?identifier= 5.8-emphasis",1]
["https://publications.europa.eu/code/en/en-250900.htm","https://style-guide.europa.eu/en/content/-/isg/topic?identifier= 5.9-references",1]
["https://publications.europa.eu/code/en/en-250902.htm","https://style-guide.europa.eu/en/content/-/isg/topic?identifier= 5.9.2-references-to-the-treaties",1]
["https://publications.europa.eu/code/en/en-250903.htm","https://style-guide.europa.eu/en/content/-/isg/topic?identifier= 5.9.3-references-to-cases",1]
["https://publications.europa.eu/code/en/en-250904.htm","https://style-guide.europa.eu/en/content/-/isg/topic?identifier= 5.9.4-bibliographic-references",1]
["https://publications.europa.eu/code/en/en-251000.htm","https://style-guide.europa.eu/en/content/-/isg/topic?identifier= 5.10-quotations",1]
["https://publications.europa.eu/code/en/en-251100.htm","https://style-guide.europa.eu/en/content/-/isg/topic?identifier= 5.11-artistic-material",1]
["https://publications.europa.eu/code/en/en-251200.htm","https://style-guide.europa.eu/en/content/-/isg/topic?identifier= 5.12-tables",1]
["https://publications.europa.eu/code/en/en-300000.htm","https://style-guide.europa.eu/en/content/-/isg/topic?identifier= part-two-general-publications",1]
["https://publications.europa.eu/code/en/en-360000.htm","https://style-guide.europa.eu/en/content/-/isg/topic?identifier= 6.1-reading-the-manuscript",1]
["https://publications.europa.eu/code/en/en-360100.htm","https://style-guide.europa.eu/en/content/-/isg/topic?identifier= 6.1-reading-the-manuscript",1]
["https://publications.europa.eu/code/en/en-360200.htm","https://style-guide.europa.eu/en/content/-/isg/topic?identifier= 6.2-reading-electronic-manuscripts",1]
["https://publications.europa.eu/code/en/en-360300.htm","https://style-guide.europa.eu/en/content/-/isg/topic?identifier= 6.3-proof-correction-marks",1]
["https://publications.europa.eu/code/en/en-360400.htm","https://style-guide.europa.eu/en/content/-/isg/topic?identifier= 6.4-word-processor-punctuation-marks-spacing",1]
["https://publications.europa.eu/code/en/en-360500.htm","https://style-guide.europa.eu/en/content/-/isg/topic?identifier= 6.5-punctuation-in-figures",1]
["https://publications.europa.eu/code/en/en-370000.htm","https://style-guide.europa.eu/en/content/-/isg/topic?identifier= 7.1.1-designations-and-abbreviations",1]
["https://publications.europa.eu/code/en/en-370100.htm","https://style-guide.europa.eu/en/content/-/isg/topic?identifier= 7.1.1-designations-and-abbreviations",1]
["https://publications.europa.eu/code/en/en-370102.htm","https://style-guide.europa.eu/en/content/-/isg/topic?identifier= 7.1.2-country-listing-order",1]
["https://publications.europa.eu/code/en/en-370200.htm","https://style-guide.europa.eu/en/content/-/isg/topic?identifier= 7.2.1-order-of-language-versions",1]
["https://publications.europa.eu/code/en/en-370202.htm","https://style-guide.europa.eu/en/content/-/isg/topic?identifier= 7.2.2-listing-languages-in-text",1]
["https://publications.europa.eu/code/en/en-370203.htm","https://style-guide.europa.eu/en/content/-/isg/topic?identifier= 7.2.3-indication-of-languages-published",1]
["https://publications.europa.eu/code/en/en-370204.htm","https://style-guide.europa.eu/en/content/-/isg/topic?identifier= 7.2.4-rules-languages-of-the-institutions",1]
["https://publications.europa.eu/code/en/en-370300.htm","https://style-guide.europa.eu/en/content/-/isg/topic?identifier= 7.3.1-the-euro-and-the-cent",1]
["https://publications.europa.eu/code/en/en-370302.htm","https://style-guide.europa.eu/en/content/-/isg/topic?identifier= 7.3.2-order-of-the-currencies-and-iso-codes",1]
["https://publications.europa.eu/code/en/en-370303.htm","https://style-guide.europa.eu/en/content/-/isg/topic?identifier= 7.3.3-rules-for-expressing-monetary-units",1]
["https://publications.europa.eu/code/en/en-380000.htm","https://style-guide.europa.eu/en/content/-/isg/topic?identifier= 8.1-footnote-references",1]
["https://publications.europa.eu/code/en/en-380100.htm","https://style-guide.europa.eu/en/content/-/isg/topic?identifier= 8.1-footnote-references",1]
["https://publications.europa.eu/code/en/en-380200.htm","https://style-guide.europa.eu/en/content/-/isg/topic?identifier= 8.2-order-of-footnotes",1]
["https://publications.europa.eu/code/en/en-390000.htm","https://style-guide.europa.eu/en/content/-/isg/topic?identifier= 9.1.1-addresses-general-principles",1]
["https://publications.europa.eu/code/en/en-390100.htm","https://style-guide.europa.eu/en/content/-/isg/topic?identifier= 9.1.1-addresses-general-principles",1]
["https://publications.europa.eu/code/en/en-390102.htm","https://style-guide.europa.eu/en/content/-/isg/topic?identifier= 9.1.2-addresses-in-unilingual-documents",1]
["https://publications.europa.eu/code/en/en-390103.htm","https://style-guide.europa.eu/en/content/-/isg/topic?identifier= 9.1.3-addresses-in-multilingual-documents",1]
["https://publications.europa.eu/code/en/en-390104.htm","https://style-guide.europa.eu/en/content/-/isg/topic?identifier= 9.1.4-addresses-in-member-states-presentation",1]
["https://publications.europa.eu/code/en/en-390105.htm","https://style-guide.europa.eu/en/content/-/isg/topic?identifier= 9.1.5-addresses-in-member-states-characteristics",1]
["https://publications.europa.eu/code/en/en-390200.htm","https://style-guide.europa.eu/en/content/-/isg/topic?identifier= 9.2-electronic-addresses",1]
["https://publications.europa.eu/code/en/en-390300.htm","https://style-guide.europa.eu/en/content/-/isg/topic?identifier= 9.3-telephone-numbers",1]
["https://publications.europa.eu/code/en/en-390400.htm","https://style-guide.europa.eu/en/content/-/isg/topic?identifier= 9.4-citation-works-references-to-official-journal",1]
["https://publications.europa.eu/code/en/en-390500.htm","https://style-guide.europa.eu/en/content/-/isg/topic?identifier= 9.5.1-institutions-and-bodies",1]
["https://publications.europa.eu/code/en/en-390600.htm","https://style-guide.europa.eu/en/content/-/isg/topic?identifier= 9.6-commission-directorates-general-services",1]
["https://publications.europa.eu/code/en/en-5000000.htm","https://style-guide.europa.eu/en/content/-/isg/topic?identifier= annexes",1]
["https://publications.europa.eu/code/en/en-5000100.htm","https://style-guide.europa.eu/en/content/-/isg/topic?identifier= annex-a1-graphics-guide-european-emblem",1]
["https://publications.europa.eu/code/en/en-5000200.htm","https://style-guide.europa.eu/en/content/-/isg/topic?identifier= annex-a2-emblems",1]
["https://publications.europa.eu/code/en/en-5000300.htm","https://style-guide.europa.eu/en/content/-/isg/topic?identifier= annex-a3-abbreviations-symbols",1]
["https://publications.europa.eu/code/en/en-5000400.htm","https://style-guide.europa.eu/en/content/-/isg/topic?identifier= annex-a4-acronyms-and-initialisms",1]
["https://publications.europa.eu/code/en/en-5000500.htm","https://style-guide.europa.eu/en/content/-/isg/topic?identifier= annex-a5-list-countries-territories-currencies",1]
["https://publications.europa.eu/code/en/en-5000501.htm","https://style-guide.europa.eu/en/content/-/isg/topic?identifier= annex-a5-list-countries-territories-currencies",1]
["https://publications.europa.eu/code/en/en-5000600.htm","https://style-guide.europa.eu/en/content/-/isg/topic?identifier= annex-a6-country-and-territory-codes",1]
["https://publications.europa.eu/code/en/en-5000700.htm","https://style-guide.europa.eu/en/content/-/isg/topic?identifier= annex-a7-currency-codes",1]
["https://publications.europa.eu/code/en/en-5000701.htm","https://style-guide.europa.eu/en/content/-/isg/topic?identifier= annex-a7-currency-codes",1]
["https://publications.europa.eu/code/en/en-5000800.htm","https://style-guide.europa.eu/en/content/-/isg/topic?identifier= annex-a8-language-codes",1]
["https://publications.europa.eu/code/en/en-5000900.htm","https://style-guide.europa.eu/en/content/-/isg/topic?identifier= annex-a9-institutions-bodies-services-organisations",1]
["https://publications.europa.eu/code/en/en-5001000.htm","https://style-guide.europa.eu/en/content/-/isg/topic?identifier= annex-a10-regions",1]
["https://publications.europa.eu/code/en/en-5020100.htm","https://style-guide.europa.eu/en/content/-/isg/topic?identifier= annex-c-miscellaneous",1]
["https://publications.europa.eu/code/en/en-4000000.htm","https://style-guide.europa.eu/en/content/-/isg/topic?identifier= part-four-publications-in-a-specific-language",1]
["https://publications.europa.eu/code/en/en-4100000.htm","https://style-guide.europa.eu/en/content/-/isg/topic?identifier= 10-house-rules-text-preparation",1]
["https://publications.europa.eu/code/en/en-4100100.htm","https://style-guide.europa.eu/en/content/-/isg/topic?identifier= 10.1-punctuation",1]
["https://publications.europa.eu/code/en/en-4100102.htm","https://style-guide.europa.eu/en/content/-/isg/topic?identifier= 10.1.2-question-mark",1]
["https://publications.europa.eu/code/en/en-4100103.htm","https://style-guide.europa.eu/en/content/-/isg/topic?identifier= 10.1.3-exclamation-mark",1]
["https://publications.europa.eu/code/en/en-4100104.htm","https://style-guide.europa.eu/en/content/-/isg/topic?identifier= 10.1.4-colon",1]
["https://publications.europa.eu/code/en/en-4100105.htm","https://style-guide.europa.eu/en/content/-/isg/topic?identifier= 10.1.5-semicolon",1]
["https://publications.europa.eu/code/en/en-4100106.htm","https://style-guide.europa.eu/en/content/-/isg/topic?identifier= 10.1.6-comma",1]
["https://publications.europa.eu/code/en/en-4100107.htm","https://style-guide.europa.eu/en/content/-/isg/topic?identifier= 10.1.7-brackets",1]
["https://publications.europa.eu/code/en/en-4100108.htm","https://style-guide.europa.eu/en/content/-/isg/topic?identifier= 10.1.8-dashes-and-hyphens",1]
["https://publications.europa.eu/code/en/en-4100109.htm","https://style-guide.europa.eu/en/content/-/isg/topic?identifier= 10.1.9-quotation-marks",1]
["https://publications.europa.eu/code/en/en-4100110.htm","https://style-guide.europa.eu/en/content/-/isg/topic?identifier= 10.1.10-ellipsis",1]
["https://publications.europa.eu/code/en/en-4100111.htm","https://style-guide.europa.eu/en/content/-/isg/topic?identifier= 10.1.11-forward-slash",1]
["https://publications.europa.eu/code/en/en-4100112.htm","https://style-guide.europa.eu/en/content/-/isg/topic?identifier= 10.1.12-apostrophe",1]
["https://publications.europa.eu/code/en/en-4100200.htm","https://style-guide.europa.eu/en/content/-/isg/topic?identifier= 10.2-verbs",1]
["https://publications.europa.eu/code/en/en-4100300.htm","https://style-guide.europa.eu/en/content/-/isg/topic?identifier= 10.3-spelling",1]
["https://publications.europa.eu/code/en/en-4100400.htm","https://style-guide.europa.eu/en/content/-/isg/topic?identifier= 10.4-upper-and-lower-case",1]
["https://publications.europa.eu/code/en/en-4100500.htm","https://style-guide.europa.eu/en/content/-/isg/topic?identifier= 10.5-numbers-dates-and-time",1]
["https://publications.europa.eu/code/en/en-4100600.htm","https://style-guide.europa.eu/en/content/-/isg/topic?identifier= 10.6-gender-neutral-language",1]
["https://publications.europa.eu/code/en/en-4100700.htm","https://style-guide.europa.eu/en/content/-/isg/topic?identifier= 10.7-italics",1]
["https://publications.europa.eu/code/en/en-4100800.htm","https://style-guide.europa.eu/en/content/-/isg/topic?identifier= 10.8-abbreviations-and-symbols",1]
["https://publications.europa.eu/code/en/en-4100900.htm","https://style-guide.europa.eu/en/content/-/isg/topic?identifier= 10.9-referring-to-eu-and-member-states",1]
["https://publications.europa.eu/code/en/en-4110000.htm","https://style-guide.europa.eu/en/content/-/isg/topic?identifier= 11-reference-works",1]
["Grand Total",null,133]

{"sheet":"DATA","index":2,"n_rows":523,"n_cols":8,"rows_kept":523,"cut":false,"hidden":true,"merged":[]}
["URL","Lang.","Target","Old website","Target","Content","X","New site"]
["https://publications.europa.eu/code/",{"$f":"MAP!$B$2","v":"en"},"-000800.htm",{"$f":"_xlfn.CONCAT(A2,B2,\"/\",B2,C2)","v":"https://publications.europa.eu/code/en/en-000800.htm"},"references","references",null,{"$f":"_xlfn.CONCAT(\"https://style-guide.europa.eu/\",B2,\"/content/-/isg/topic?identifier= \",E2)","v":"https://style-guide.europa.eu/en/content/-/isg/topic?identifier= references"}]
["https://publications.europa.eu/code/",{"$f":"MAP!$B$2","v":"en"},"-000900.htm",{"$f":"_xlfn.CONCAT(A3,B3,\"/\",B3,C3)","v":"https://publications.europa.eu/code/en/en-000900.htm"},"introduction","introduction",null,"https://style-guide.europa.eu/en/content/-/isg/topic?identifier= introduction"]
["https://publications.europa.eu/code/",{"$f":"MAP!$B$2","v":"en"},"-10000.htm","https://publications.europa.eu/code/en/en-10000.htm","part-one-official-journal","part-one-official-journal",null,"https://style-guide.europa.eu/en/content/-/isg/topic?identifier= part-one-official-journal"]
["https://publications.europa.eu/code/",{"$f":"MAP!$B$2","v":"en"},"-10100.htm","https://publications.europa.eu/code/en/en-10100.htm","preamble","preamble",null,"https://style-guide.europa.eu/en/content/-/isg/topic?identifier= preamble"]
["https://publications.europa.eu/code/",{"$f":"MAP!$B$2","v":"en"},"-110100.htm","https://publications.europa.eu/code/en/en-110100.htm","1.1-general-structure","1.1-general-structure",null,"https://style-guide.europa.eu/en/content/-/isg/topic?identifier= 1.1-general-structure"]
["https://publications.europa.eu/code/",{"$f":"MAP!$B$2","v":"en"},"-110200.htm","https://publications.europa.eu/code/en/en-110200.htm","1.2.1-classification-of-acts","1.2.1-classification-of-acts",null,"https://style-guide.europa.eu/en/content/-/isg/topic?identifier= 1.2.1-classification-of-acts"]
["https://publications.europa.eu/code/",{"$f":"MAP!$B$2","v":"en"},"-110202.htm","https://publications.europa.eu/code/en/en-110202.htm","1.2.2-numbering-of-acts","1.2.2-numbering-of-acts",null,"https://style-guide.europa.eu/en/content/-/isg/topic?identifier= 1.2.2-numbering-of-acts"]
["https://publications.europa.eu/code/",{"$f":"MAP!$B$2","v":"en"},"-110203.htm","https://publications.europa.eu/code/en/en-110203.htm","1.2.3-contents","1.2.3-contents",null,"https://style-guide.europa.eu/en/content/-/isg/topic?identifier= 1.2.3-contents"]
["https://publications.europa.eu/code/",{"$f":"MAP!$B$2","v":"en"},"-110300.htm","https://publications.europa.eu/code/en/en-110300.htm","1.3.1-classification-of-documents","1.3.1-classification-of-documents",null,"https://style-guide.europa.eu/en/content/-/isg/topic?identifier= 1.3.1-classification-of-documents"]
["https://publications.europa.eu/code/",{"$f":"MAP!$B$2","v":"en"},"-110302.htm","https://publications.europa.eu/code/en/en-110302.htm","1.3.2-numbering-of-documents","1.3.2-numbering-of-documents",null,"https://style-guide.europa.eu/en/content/-/isg/topic?identifier= 1.3.2-numbering-of-documents"]
["https://publications.europa.eu/code/",{"$f":"MAP!$B$2","v":"en"},"-110303.htm","https://publications.europa.eu/code/en/en-110303.htm","1.3.3-contents","1.3.3-contents",null,"https://style-guide.europa.eu/en/content/-/isg/topic?identifier= 1.3.3-contents"]
["https://publications.europa.eu/code/",{"$f":"MAP!$B$2","v":"en"},"-120000.htm","https://publications.europa.eu/code/en/en-120000.htm","2-structure-legal-act","2-structure-legal-act",null,"https://style-guide.europa.eu/en/content/-/isg/topic?identifier= 2-structure-legal-act"]
["https://publications.europa.eu/code/",{"$f":"MAP!$B$2","v":"en"},"-120100.htm","https://publications.europa.eu/code/en/en-120100.htm","2.1-title","2.1-title",null,"https://style-guide.europa.eu/en/content/-/isg/topic?identifier= 2.1-title"]
["https://publications.europa.eu/code/",{"$f":"MAP!$B$2","v":"en"},"-120200.htm","https://publications.europa.eu/code/en/en-120200.htm","2.2-preamble","2.2-preamble",null,"https://style-guide.europa.eu/en/content/-/isg/topic?identifier= 2.2-preamble"]
["https://publications.europa.eu/code/",{"$f":"MAP!$B$2","v":"en"},"-120300.htm","https://publications.europa.eu/code/en/en-120300.htm","2.3-articles-enacting-terms","2.3-articles-enacting-terms",null,"https://style-guide.europa.eu/en/content/-/isg/topic?identifier= 2.3-articles-enacting-terms"]
["https://publications.europa.eu/code/",{"$f":"MAP!$B$2","v":"en"},"-120400.htm","https://publications.europa.eu/code/en/en-120400.htm","2.4-compulsory-character-of-regulations","2.4-compulsory-character-of-regulations",null,"https://style-guide.europa.eu/en/content/-/isg/topic?identifier= 2.4-compulsory-character-of-regulations"]
["https://publications.europa.eu/code/",{"$f":"MAP!$B$2","v":"en"},"-120500.htm","https://publications.europa.eu/code/en/en-120500.htm","2.5-concluding-formulas","2.5-concluding-formulas",null,"https://style-guide.europa.eu/en/content/-/isg/topic?identifier= 2.5-concluding-formulas"]
["https://publications.europa.eu/code/",{"$f":"MAP!$B$2","v":"en"},"-120600.htm","https://publications.europa.eu/code/en/en-120600.htm","2.6-annexes","2.6-annexes",null,"https://style-guide.europa.eu/en/content/-/isg/topic?identifier= 2.6-annexes"]
["https://publications.europa.eu/code/",{"$f":"MAP!$B$2","v":"en"},"-120700.htm","https://publications.europa.eu/code/en/en-120700.htm","2.7-subdivisions-of-acts","2.7-subdivisions-of-acts",null,"https://style-guide.europa.eu/en/content/-/isg/topic?identifier= 2.7-subdivisions-of-acts"]
["https://publications.europa.eu/code/",{"$f":"MAP!$B$2","v":"en"},"-130000.htm","https://publications.europa.eu/code/en/en-130000.htm","3-rules-on-drafting-documents","3-rules-on-drafting-documents",null,"https://style-guide.europa.eu/en/content/-/isg/topic?identifier= 3-rules-on-drafting-documents"]
["https://publications.europa.eu/code/",{"$f":"MAP!$B$2","v":"en"},"-130100.htm","https://publications.europa.eu/code/en/en-130100.htm","3.1-references-to-the-official-journal","3.1-references-to-the-official-journal",null,"https://style-guide.europa.eu/en/content/-/isg/topic?identifier= 3.1-references-to-the-official-journal"]
["https://publications.europa.eu/code/",{"$f":"MAP!$B$2","v":"en"},"-130200.htm","https://publications.europa.eu/code/en/en-130200.htm","3.2.1-forms-of-title","3.2.1-forms-of-title",null,"https://style-guide.europa.eu/en/content/-/isg/topic?identifier= 3.2.1-forms-of-title"]
["https://publications.europa.eu/code/",{"$f":"MAP!$B$2","v":"en"},"-130202.htm","https://publications.europa.eu/code/en/en-130202.htm","3.2.2-referring-to-other-acts","3.2.2-referring-to-other-acts",null,"https://style-guide.europa.eu/en/content/-/isg/topic?identifier= 3.2.2-referring-to-other-acts"]
["https://publications.europa.eu/code/",{"$f":"MAP!$B$2","v":"en"},"-130203.htm","https://publications.europa.eu/code/en/en-130203.htm","3.2.3-references-to-subdivisions-of-an-act","3.2.3-references-to-subdivisions-of-an-act",null,"https://style-guide.europa.eu/en/content/-/isg/topic?identifier= 3.2.3-references-to-subdivisions-of-an-act"]
["https://publications.europa.eu/code/",{"$f":"MAP!$B$2","v":"en"},"-130204.htm","https://publications.europa.eu/code/en/en-130204.htm","3.2.4-references-to-amendments-to-an-act","3.2.4-references-to-amendments-to-an-act",null,"https://style-guide.europa.eu/en/content/-/isg/topic?identifier= 3.2.4-references-to-amendments-to-an-act"]
["https://publications.europa.eu/code/",{"$f":"MAP!$B$2","v":"en"},"-130300.htm","https://publications.europa.eu/code/en/en-130300.htm","3.3.1-amendments-in-the-text","3.3.1-amendments-in-the-text",null,"https://style-guide.europa.eu/en/content/-/isg/topic?identifier= 3.3.1-amendments-in-the-text"]
["https://publications.europa.eu/code/",{"$f":"MAP!$B$2","v":"en"},"-130302.htm","https://publications.europa.eu/code/en/en-130302.htm","3.3.2-additions-and-numbering","3.3.2-additions-and-numbering",null,"https://style-guide.europa.eu/en/content/-/isg/topic?identifier= 3.3.2-additions-and-numbering"]
["https://publications.europa.eu/code/",{"$f":"MAP!$B$2","v":"en"},"-130400.htm","https://publications.europa.eu/code/en/en-130400.htm","3.4.1-order-of-treaties","3.4.1-order-of-treaties",null,"https://style-guide.europa.eu/en/content/-/isg/topic?identifier= 3.4.1-order-of-treaties"]
["https://publications.europa.eu/code/",{"$f":"MAP!$B$2","v":"en"},"-130500.htm","https://publications.europa.eu/code/en/en-130500.htm","3.5.1-listed-points-punctuation","3.5.1-listed-points-punctuation",null,"https://style-guide.europa.eu/en/content/-/isg/topic?identifier= 3.5.1-listed-points-punctuation"]
["https://publications.europa.eu/code/",{"$f":"MAP!$B$2","v":"en"},"-130600.htm","https://publications.europa.eu/code/en/en-130600.htm","3.6-definition-expression-or-word","3.6-definition-expression-or-word",null,"https://style-guide.europa.eu/en/content/-/isg/topic?identifier= 3.6-definition-expression-or-word"]
["https://publications.europa.eu/code/",{"$f":"MAP!$B$2","v":"en"},"-130700.htm","https://publications.europa.eu/code/en/en-130700.htm","3.7-international-agreements","3.7-international-agreements",null,"https://style-guide.europa.eu/en/content/-/isg/topic?identifier= 3.7-international-agreements"]
["https://publications.europa.eu/code/",{"$f":"MAP!$B$2","v":"en"},"-130800-tab.htm","https://publications.europa.eu/code/en/en-130800-tab.htm","summary-tables","summary-tables",null,"https://style-guide.europa.eu/en/content/-/isg/topic?identifier= summary-tables"]
["https://publications.europa.eu/code/",{"$f":"MAP!$B$2","v":"en"},"-200000.htm","https://publications.europa.eu/code/en/en-200000.htm","part-two-general-publications","part-two-general-publications",null,"https://style-guide.europa.eu/en/content/-/isg/topic?identifier= part-two-general-publications"]
["https://publications.europa.eu/code/",{"$f":"MAP!$B$2","v":"en"},"-240000.htm","https://publications.europa.eu/code/en/en-240000.htm","4.1.1-authors-and-the-publications-office","4.1.1-authors-and-the-publications-office",null,"https://style-guide.europa.eu/en/content/-/isg/topic?identifier= 4.1.1-authors-and-the-publications-office"]
["https://publications.europa.eu/code/",{"$f":"MAP!$B$2","v":"en"},"-240100.htm","https://publications.europa.eu/code/en/en-240100.htm","4.1.1-authors-and-the-publications-office","4.1.1-authors-and-the-publications-office",null,"https://style-guide.europa.eu/en/content/-/isg/topic?identifier= 4.1.1-authors-and-the-publications-office"]
["https://publications.europa.eu/code/",{"$f":"MAP!$B$2","v":"en"},"-240102.htm","https://publications.europa.eu/code/en/en-240102.htm","4.1.2-project-management-publications-office","4.1.2-project-management-publications-office",null,"https://style-guide.europa.eu/en/content/-/isg/topic?identifier= 4.1.2-project-management-publications-office"]
["https://publications.europa.eu/code/",{"$f":"MAP!$B$2","v":"en"},"-240103.htm","https://publications.europa.eu/code/en/en-240103.htm","4.1.3-proofreading-publications-office","4.1.3-proofreading-publications-office",null,"https://style-guide.europa.eu/en/content/-/isg/topic?identifier= 4.1.3-proofreading-publications-office"]
["https://publications.europa.eu/code/",{"$f":"MAP!$B$2","v":"en"},"-240200.htm","https://publications.europa.eu/code/en/en-240200.htm","4.2-original-documents","4.2-original-documents",null,"https://style-guide.europa.eu/en/content/-/isg/topic?identifier= 4.2-original-documents"]
["https://publications.europa.eu/code/",{"$f":"MAP!$B$2","v":"en"},"-240202.htm","https://publications.europa.eu/code/en/en-240202.htm","4.2.2-logical-structure-of-documents","4.2.2-logical-structure-of-documents",null,"https://style-guide.europa.eu/en/content/-/isg/topic?identifier= 4.2.2-logical-structure-of-documents"]
["https://publications.europa.eu/code/",{"$f":"MAP!$B$2","v":"en"},"-240203.htm","https://publications.europa.eu/code/en/en-240203.htm","4.2.3-text-preparation","4.2.3-text-preparation",null,"https://style-guide.europa.eu/en/content/-/isg/topic?identifier= 4.2.3-text-preparation"]
["https://publications.europa.eu/code/",{"$f":"MAP!$B$2","v":"en"},"-240204.htm","https://publications.europa.eu/code/en/en-240204.htm","4.2.4-camera-ready-documents","4.2.4-camera-ready-documents",null,"https://style-guide.europa.eu/en/content/-/isg/topic?identifier= 4.2.4-camera-ready-documents"]
["https://publications.europa.eu/code/",{"$f":"MAP!$B$2","v":"en"},"-240300.htm","https://publications.europa.eu/code/en/en-240300.htm","4.3-publication-types","4.3-publication-types",null,"https://style-guide.europa.eu/en/content/-/isg/topic?identifier= 4.3-publication-types"]
["https://publications.europa.eu/code/",{"$f":"MAP!$B$2","v":"en"},"-240400.htm","https://publications.europa.eu/code/en/en-240400.htm","4.4-identifiers-assigned-by-publications-office","4.4-identifiers-assigned-by-publications-office",null,"https://style-guide.europa.eu/en/content/-/isg/topic?identifier= 4.4-identifiers-assigned-by-publications-office"]
["https://publications.europa.eu/code/",{"$f":"MAP!$B$2","v":"en"},"-240500.htm","https://publications.europa.eu/code/en/en-240500.htm","4.5-identifier-assigned-by-court-of-justice","4.5-identifier-assigned-by-court-of-justice",null,"https://style-guide.europa.eu/en/content/-/isg/topic?identifier= 4.5-identifier-assigned-by-court-of-justice"]
["https://publications.europa.eu/code/",{"$f":"MAP!$B$2","v":"en"},"-250000.htm","https://publications.europa.eu/code/en/en-250000.htm","5.1.1-components","5.1.1-components",null,"https://style-guide.europa.eu/en/content/-/isg/topic?identifier= 5.1.1-components"]
["https://publications.europa.eu/code/",{"$f":"MAP!$B$2","v":"en"},"-250100.htm","https://publications.europa.eu/code/en/en-250100.htm","5.1.1-components","5.1.1-components",null,"https://style-guide.europa.eu/en/content/-/isg/topic?identifier= 5.1.1-components"]
["https://publications.europa.eu/code/",{"$f":"MAP!$B$2","v":"en"},"-250102.htm","https://publications.europa.eu/code/en/en-250102.htm","5.1.2-use-of-colour-on-covers","5.1.2-use-of-colour-on-covers",null,"https://style-guide.europa.eu/en/content/-/isg/topic?identifier= 5.1.2-use-of-colour-on-covers"]
["https://publications.europa.eu/code/",{"$f":"MAP!$B$2","v":"en"},"-250200.htm","https://publications.europa.eu/code/en/en-250200.htm","5.2-title-page","5.2-title-page",null,"https://style-guide.europa.eu/en/content/-/isg/topic?identifier= 5.2-title-page"]
["https://publications.europa.eu/code/",{"$f":"MAP!$B$2","v":"en"},"-250300.htm","https://publications.europa.eu/code/en/en-250300.htm","5.3.1-components","5.3.1-components",null,"https://style-guide.europa.eu/en/content/-/isg/topic?identifier= 5.3.1-components"]
["https://publications.europa.eu/code/",{"$f":"MAP!$B$2","v":"en"},"-250302.htm","https://publications.europa.eu/code/en/en-250302.htm","5.3.2-printed-paper-product","5.3.2-printed-paper-product",null,"https://style-guide.europa.eu/en/content/-/isg/topic?identifier= 5.3.2-printed-paper-product"]
["https://publications.europa.eu/code/",{"$f":"MAP!$B$2","v":"en"},"-250400.htm","https://publications.europa.eu/code/en/en-250400.htm","5.4.1-reproduction-rights","5.4.1-reproduction-rights",null,"https://style-guide.europa.eu/en/content/-/isg/topic?identifier= 5.4.1-reproduction-rights"]
["https://publications.europa.eu/code/",{"$f":"MAP!$B$2","v":"en"},"-250402.htm","https://publications.europa.eu/code/en/en-250402.htm","5.4.2-copyright-qualification","5.4.2-copyright-qualification",null,"https://style-guide.europa.eu/en/content/-/isg/topic?identifier= 5.4.2-copyright-qualification"]
["https://publications.europa.eu/code/",{"$f":"MAP!$B$2","v":"en"},"-250403.htm","https://publications.europa.eu/code/en/en-250403.htm","5.4.3-legal-notice","5.4.3-legal-notice",null,"https://style-guide.europa.eu/en/content/-/isg/topic?identifier= 5.4.3-legal-notice"]
["https://publications.europa.eu/code/",{"$f":"MAP!$B$2","v":"en"},"-250404.htm","https://publications.europa.eu/code/en/en-250404.htm","5.4.4-reproduction-of-artistic-elements","5.4.4-reproduction-of-artistic-elements",null,"https://style-guide.europa.eu/en/content/-/isg/topic?identifier= 5.4.4-reproduction-of-artistic-elements"]
["https://publications.europa.eu/code/",{"$f":"MAP!$B$2","v":"en"},"-250500.htm","https://publications.europa.eu/code/en/en-250500.htm","5.5.1-dedication","5.5.1-dedication",null,"https://style-guide.europa.eu/en/content/-/isg/topic?identifier= 5.5.1-dedication"]
["https://publications.europa.eu/code/",{"$f":"MAP!$B$2","v":"en"},"-250600.htm","https://publications.europa.eu/code/en/en-250600.htm","5.6-divisions-of-the-text","5.6-divisions-of-the-text",null,"https://style-guide.europa.eu/en/content/-/isg/topic?identifier= 5.6-divisions-of-the-text"]
["https://publications.europa.eu/code/",{"$f":"MAP!$B$2","v":"en"},"-250700.htm","https://publications.europa.eu/code/en/en-250700.htm","5.7-listed-points","5.7-listed-points",null,"https://style-guide.europa.eu/en/content/-/isg/topic?identifier= 5.7-listed-points"]
["https://publications.europa.eu/code/",{"$f":"MAP!$B$2","v":"en"},"-250800.htm","https://publications.europa.eu/code/en/en-250800.htm","5.8-emphasis","5.8-emphasis",null,"https://style-guide.europa.eu/en/content/-/isg/topic?identifier= 5.8-emphasis"]
["https://publications.europa.eu/code/",{"$f":"MAP!$B$2","v":"en"},"-250900.htm","https://publications.europa.eu/code/en/en-250900.htm","5.9-references","5.9-references",null,"https://style-guide.europa.eu/en/content/-/isg/topic?identifier= 5.9-references"]
["https://publications.europa.eu/code/",{"$f":"MAP!$B$2","v":"en"},"-250902.htm","https://publications.europa.eu/code/en/en-250902.htm","5.9.2-references-to-the-treaties","5.9.2-references-to-the-treaties",null,"https://style-guide.europa.eu/en/content/-/isg/topic?identifier= 5.9.2-references-to-the-treaties"]
["https://publications.europa.eu/code/",{"$f":"MAP!$B$2","v":"en"},"-250903.htm","https://publications.europa.eu/code/en/en-250903.htm","5.9.3-references-to-cases","5.9.3-references-to-cases",null,"https://style-guide.europa.eu/en/content/-/isg/topic?identifier= 5.9.3-references-to-cases"]
["https://publications.europa.eu/code/",{"$f":"MAP!$B$2","v":"en"},"-250904.htm","https://publications.europa.eu/code/en/en-250904.htm","5.9.4-bibliographic-references","5.9.4-bibliographic-references",null,"https://style-guide.europa.eu/en/content/-/isg/topic?identifier= 5.9.4-bibliographic-references"]
["https://publications.europa.eu/code/",{"$f":"MAP!$B$2","v":"en"},"-251000.htm","https://publications.europa.eu/code/en/en-251000.htm","5.10-quotations","5.10-quotations",null,"https://style-guide.europa.eu/en/content/-/isg/topic?identifier= 5.10-quotations"]
["https://publications.europa.eu/code/",{"$f":"MAP!$B$2","v":"en"},"-251100.htm","https://publications.europa.eu/code/en/en-251100.htm","5.11-artistic-material","5.11-artistic-material",null,"https://style-guide.europa.eu/en/content/-/isg/topic?identifier= 5.11-artistic-material"]
["https://publications.europa.eu/code/",{"$f":"MAP!$B$2","v":"en"},"-251200.htm","https://publications.europa.eu/code/en/en-251200.htm","5.12-tables","5.12-tables",null,{"$f":"_xlfn.CONCAT(\"https://style-guide.europa.eu/\",B66,\"/content/-/isg/topic?identifier= \",E66)","v":"https://style-guide.europa.eu/en/content/-/isg/topic?identifier= 5.12-tables"}]
["https://publications.europa.eu/code/",{"$f":"MAP!$B$2","v":"en"},"-300000.htm",{"$f":"_xlfn.CONCAT(A67,B67,\"/\",B67,C67)","v":"https://publications.europa.eu/code/en/en-300000.htm"},"part-two-general-publications","part-two-general-publications",null,"https://style-guide.europa.eu/en/content/-/isg/topic?identifier= part-two-general-publications"]
["https://publications.europa.eu/code/",{"$f":"MAP!$B$2","v":"en"},"-360000.htm","https://publications.europa.eu/code/en/en-360000.htm","6.1-reading-the-manuscript","6.1-reading-the-manuscript",null,"https://style-guide.europa.eu/en/content/-/isg/topic?identifier= 6.1-reading-the-manuscript"]
["https://publications.europa.eu/code/",{"$f":"MAP!$B$2","v":"en"},"-360100.htm","https://publications.europa.eu/code/en/en-360100.htm","6.1-reading-the-manuscript","6.1-reading-the-manuscript",null,"https://style-guide.europa.eu/en/content/-/isg/topic?identifier= 6.1-reading-the-manuscript"]
["https://publications.europa.eu/code/",{"$f":"MAP!$B$2","v":"en"},"-360200.htm","https://publications.europa.eu/code/en/en-360200.htm","6.2-reading-electronic-manuscripts","6.2-reading-electronic-manuscripts",null,"https://style-guide.europa.eu/en/content/-/isg/topic?identifier= 6.2-reading-electronic-manuscripts"]
["https://publications.europa.eu/code/",{"$f":"MAP!$B$2","v":"en"},"-360300.htm","https://publications.europa.eu/code/en/en-360300.htm","6.3-proof-correction-marks","6.3-proof-correction-marks",null,"https://style-guide.europa.eu/en/content/-/isg/topic?identifier= 6.3-proof-correction-marks"]
["https://publications.europa.eu/code/",{"$f":"MAP!$B$2","v":"en"},"-360400.htm","https://publications.europa.eu/code/en/en-360400.htm","6.4-word-processor-punctuation-marks-spacing","6.4-word-processor-punctuation-marks-spacing",null,"https://style-guide.europa.eu/en/content/-/isg/topic?identifier= 6.4-word-processor-punctuation-marks-spacing"]
["https://publications.europa.eu/code/",{"$f":"MAP!$B$2","v":"en"},"-360500.htm","https://publications.europa.eu/code/en/en-360500.htm","6.5-punctuation-in-figures","6.5-punctuation-in-figures",null,"https://style-guide.europa.eu/en/content/-/isg/topic?identifier= 6.5-punctuation-in-figures"]
["https://publications.europa.eu/code/",{"$f":"MAP!$B$2","v":"en"},"-370000.htm","https://publications.europa.eu/code/en/en-370000.htm","7.1.1-designations-and-abbreviations","7.1.1-designations-and-abbreviations",null,"https://style-guide.europa.eu/en/content/-/isg/topic?identifier= 7.1.1-designations-and-abbreviations"]
["https://publications.europa.eu/code/",{"$f":"MAP!$B$2","v":"en"},"-370100.htm","https://publications.europa.eu/code/en/en-370100.htm","7.1.1-designations-and-abbreviations","7.1.1-designations-and-abbreviations",null,"https://style-guide.europa.eu/en/content/-/isg/topic?identifier= 7.1.1-designations-and-abbreviations"]
["https://publications.europa.eu/code/",{"$f":"MAP!$B$2","v":"en"},"-370102.htm","https://publications.europa.eu/code/en/en-370102.htm","7.1.2-country-listing-order","7.1.2-country-listing-order",null,"https://style-guide.europa.eu/en/content/-/isg/topic?identifier= 7.1.2-country-listing-order"]
["https://publications.europa.eu/code/",{"$f":"MAP!$B$2","v":"en"},"-370200.htm","https://publications.europa.eu/code/en/en-370200.htm","7.2.1-order-of-language-versions","7.2.1-order-of-language-versions",null,"https://style-guide.europa.eu/en/content/-/isg/topic?identifier= 7.2.1-order-of-language-versions"]
["https://publications.europa.eu/code/",{"$f":"MAP!$B$2","v":"en"},"-370202.htm","https://publications.europa.eu/code/en/en-370202.htm","7.2.2-listing-languages-in-text","7.2.2-listing-languages-in-text",null,"https://style-guide.europa.eu/en/content/-/isg/topic?identifier= 7.2.2-listing-languages-in-text"]
["https://publications.europa.eu/code/",{"$f":"MAP!$B$2","v":"en"},"-370203.htm","https://publications.europa.eu/code/en/en-370203.htm","7.2.3-indication-of-languages-published","7.2.3-indication-of-languages-published",null,"https://style-guide.europa.eu/en/content/-/isg/topic?identifier= 7.2.3-indication-of-languages-published"]
["https://publications.europa.eu/code/",{"$f":"MAP!$B$2","v":"en"},"-370204.htm","https://publications.europa.eu/code/en/en-370204.htm","7.2.4-rules-languages-of-the-institutions","7.2.4-rules-languages-of-the-institutions",null,"https://style-guide.europa.eu/en/content/-/isg/topic?identifier= 7.2.4-rules-languages-of-the-institutions"]
["https://publications.europa.eu/code/",{"$f":"MAP!$B$2","v":"en"},"-370300.htm","https://publications.europa.eu/code/en/en-370300.htm","7.3.1-the-euro-and-the-cent","7.3.1-the-euro-and-the-cent",null,"https://style-guide.europa.eu/en/content/-/isg/topic?identifier= 7.3.1-the-euro-and-the-cent"]
["https://publications.europa.eu/code/",{"$f":"MAP!$B$2","v":"en"},"-370302.htm","https://publications.europa.eu/code/en/en-370302.htm","7.3.2-order-of-the-currencies-and-iso-codes","7.3.2-order-of-the-currencies-and-iso-codes",null,"https://style-guide.europa.eu/en/content/-/isg/topic?identifier= 7.3.2-order-of-the-currencies-and-iso-codes"]
["https://publications.europa.eu/code/",{"$f":"MAP!$B$2","v":"en"},"-370303.htm","https://publications.europa.eu/code/en/en-370303.htm","7.3.3-rules-for-expressing-monetary-units","7.3.3-rules-for-expressing-monetary-units",null,"https://style-guide.europa.eu/en/content/-/isg/topic?identifier= 7.3.3-rules-for-expressing-monetary-units"]
["https://publications.europa.eu/code/",{"$f":"MAP!$B$2","v":"en"},"-380000.htm","https://publications.europa.eu/code/en/en-380000.htm","8.1-footnote-references","8.1-footnote-references",null,"https://style-guide.europa.eu/en/content/-/isg/topic?identifier= 8.1-footnote-references"]
["https://publications.europa.eu/code/",{"$f":"MAP!$B$2","v":"en"},"-380100.htm","https://publications.europa.eu/code/en/en-380100.htm","8.1-footnote-references","8.1-footnote-references",null,"https://style-guide.europa.eu/en/content/-/isg/topic?identifier= 8.1-footnote-references"]
["https://publications.europa.eu/code/",{"$f":"MAP!$B$2","v":"en"},"-380200.htm","https://publications.europa.eu/code/en/en-380200.htm","8.2-order-of-footnotes","8.2-order-of-footnotes",null,"https://style-guide.europa.eu/en/content/-/isg/topic?identifier= 8.2-order-of-footnotes"]
["https://publications.europa.eu/code/",{"$f":"MAP!$B$2","v":"en"},"-390000.htm","https://publications.europa.eu/code/en/en-390000.htm","9.1.1-addresses-general-principles","9.1.1-addresses-general-principles",null,"https://style-guide.europa.eu/en/content/-/isg/topic?identifier= 9.1.1-addresses-general-principles"]
["https://publications.europa.eu/code/",{"$f":"MAP!$B$2","v":"en"},"-390100.htm","https://publications.europa.eu/code/en/en-390100.htm","9.1.1-addresses-general-principles","9.1.1-addresses-general-principles",null,"https://style-guide.europa.eu/en/content/-/isg/topic?identifier= 9.1.1-addresses-general-principles"]
["https://publications.europa.eu/code/",{"$f":"MAP!$B$2","v":"en"},"-390102.htm","https://publications.europa.eu/code/en/en-390102.htm","9.1.2-addresses-in-unilingual-documents","9.1.2-addresses-in-unilingual-documents",null,"https://style-guide.europa.eu/en/content/-/isg/topic?identifier= 9.1.2-addresses-in-unilingual-documents"]
["https://publications.europa.eu/code/",{"$f":"MAP!$B$2","v":"en"},"-390103.htm","https://publications.europa.eu/code/en/en-390103.htm","9.1.3-addresses-in-multilingual-documents","9.1.3-addresses-in-multilingual-documents",null,"https://style-guide.europa.eu/en/content/-/isg/topic?identifier= 9.1.3-addresses-in-multilingual-documents"]
["https://publications.europa.eu/code/",{"$f":"MAP!$B$2","v":"en"},"-390104.htm","https://publications.europa.eu/code/en/en-390104.htm","9.1.4-addresses-in-member-states-presentation","9.1.4-addresses-in-member-states-presentation",null,"https://style-guide.europa.eu/en/content/-/isg/topic?identifier= 9.1.4-addresses-in-member-states-presentation"]
["https://publications.europa.eu/code/",{"$f":"MAP!$B$2","v":"en"},"-390105.htm","https://publications.europa.eu/code/en/en-390105.htm","9.1.5-addresses-in-member-states-characteristics","9.1.5-addresses-in-member-states-characteristics",null,"https://style-guide.europa.eu/en/content/-/isg/topic?identifier= 9.1.5-addresses-in-member-states-characteristics"]
["https://publications.europa.eu/code/",{"$f":"MAP!$B$2","v":"en"},"-390200.htm","https://publications.europa.eu/code/en/en-390200.htm","9.2-electronic-addresses","9.2-electronic-addresses",null,"https://style-guide.europa.eu/en/content/-/isg/topic?identifier= 9.2-electronic-addresses"]
["https://publications.europa.eu/code/",{"$f":"MAP!$B$2","v":"en"},"-390300.htm","https://publications.europa.eu/code/en/en-390300.htm","9.3-telephone-numbers","9.3-telephone-numbers",null,"https://style-guide.europa.eu/en/content/-/isg/topic?identifier= 9.3-telephone-numbers"]
["https://publications.europa.eu/code/",{"$f":"MAP!$B$2","v":"en"},"-390400.htm","https://publications.europa.eu/code/en/en-390400.htm","9.4-citation-works-references-to-official-journal","9.4-citation-works-references-to-official-journal",null,"https://style-guide.europa.eu/en/content/-/isg/topic?identifier= 9.4-citation-works-references-to-official-journal"]
["https://publications.europa.eu/code/",{"$f":"MAP!$B$2","v":"en"},"-390500.htm","https://publications.europa.eu/code/en/en-390500.htm","9.5.1-institutions-and-bodies","9.5.1-institutions-and-bodies",null,"https://style-guide.europa.eu/en/content/-/isg/topic?identifier= 9.5.1-institutions-and-bodies"]
["https://publications.europa.eu/code/",{"$f":"MAP!$B$2","v":"en"},"-390600.htm","https://publications.europa.eu/code/en/en-390600.htm","9.6-commission-directorates-general-services","9.6-commission-directorates-general-services",null,"https://style-guide.europa.eu/en/content/-/isg/topic?identifier= 9.6-commission-directorates-general-services"]
["https://publications.europa.eu/code/",{"$f":"MAP!$B$2","v":"en"},"-5000000.htm","https://publications.europa.eu/code/en/en-5000000.htm","annexes","annexes",null,"https://style-guide.europa.eu/en/content/-/isg/topic?identifier= annexes"]
["https://publications.europa.eu/code/",{"$f":"MAP!$B$2","v":"en"},"-5000100.htm","https://publications.europa.eu/code/en/en-5000100.htm","annex-a1-graphics-guide-european-emblem","annex-a1-graphics-guide-european-emblem",null,"https://style-guide.europa.eu/en/content/-/isg/topic?identifier= annex-a1-graphics-guide-european-emblem"]
["https://publications.europa.eu/code/",{"$f":"MAP!$B$2","v":"en"},"-5000200.htm","https://publications.europa.eu/code/en/en-5000200.htm","annex-a2-emblems","annex-a2-emblems",null,"https://style-guide.europa.eu/en/content/-/isg/topic?identifier= annex-a2-emblems"]
["https://publications.europa.eu/code/",{"$f":"MAP!$B$2","v":"en"},"-5000300.htm","https://publications.europa.eu/code/en/en-5000300.htm","annex-a3-abbreviations-symbols","annex-a3-abbreviations-symbols",null,"https://style-guide.europa.eu/en/content/-/isg/topic?identifier= annex-a3-abbreviations-symbols"]
["https://publications.europa.eu/code/",{"$f":"MAP!$B$2","v":"en"},"-5000400.htm","https://publications.europa.eu/code/en/en-5000400.htm","annex-a4-acronyms-and-initialisms","annex-a4-acronyms-and-initialisms",null,"https://style-guide.europa.eu/en/content/-/isg/topic?identifier= annex-a4-acronyms-and-initialisms"]
["https://publications.europa.eu/code/",{"$f":"MAP!$B$2","v":"en"},"-5000500.htm","https://publications.europa.eu/code/en/en-5000500.htm","annex-a5-list-countries-territories-currencies","annex-a5-list-countries-territories-currencies",null,"https://style-guide.europa.eu/en/content/-/isg/topic?identifier= annex-a5-list-countries-territories-currencies"]
["https://publications.europa.eu/code/",{"$f":"MAP!$B$2","v":"en"},"-5000501.htm","https://publications.europa.eu/code/en/en-5000501.htm","annex-a5-list-countries-territories-currencies","annex-a5-list-countries-territories-currencies",null,"https://style-guide.europa.eu/en/content/-/isg/topic?identifier= annex-a5-list-countries-territories-currencies"]
["https://publications.europa.eu/code/",{"$f":"MAP!$B$2","v":"en"},"-5000600.htm","https://publications.europa.eu/code/en/en-5000600.htm","annex-a6-country-and-territory-codes","annex-a6-country-and-territory-codes",null,"https://style-guide.europa.eu/en/content/-/isg/topic?identifier= annex-a6-country-and-territory-codes"]
["https://publications.europa.eu/code/",{"$f":"MAP!$B$2","v":"en"},"-5000700.htm","https://publications.europa.eu/code/en/en-5000700.htm","annex-a7-currency-codes","annex-a7-currency-codes",null,"https://style-guide.europa.eu/en/content/-/isg/topic?identifier= annex-a7-currency-codes"]
["https://publications.europa.eu/code/",{"$f":"MAP!$B$2","v":"en"},"-5000701.htm","https://publications.europa.eu/code/en/en-5000701.htm","annex-a7-currency-codes","annex-a7-currency-codes",null,"https://style-guide.europa.eu/en/content/-/isg/topic?identifier= annex-a7-currency-codes"]
["https://publications.europa.eu/code/",{"$f":"MAP!$B$2","v":"en"},"-5000800.htm","https://publications.europa.eu/code/en/en-5000800.htm","annex-a8-language-codes","annex-a8-language-codes",null,"https://style-guide.europa.eu/en/content/-/isg/topic?identifier= annex-a8-language-codes"]
["https://publications.europa.eu/code/",{"$f":"MAP!$B$2","v":"en"},"-5000900.htm","https://publications.europa.eu/code/en/en-5000900.htm","annex-a9-institutions-bodies-services-organisations","annex-a9-institutions-bodies-services-organisations",null,"https://style-guide.europa.eu/en/content/-/isg/topic?identifier= annex-a9-institutions-bodies-services-organisations"]
["https://publications.europa.eu/code/",{"$f":"MAP!$B$2","v":"en"},"-5001000.htm","https://publications.europa.eu/code/en/en-5001000.htm","annex-a10-regions","annex-a10-regions",null,"https://style-guide.europa.eu/en/content/-/isg/topic?identifier= annex-a10-regions"]
["https://publications.europa.eu/code/",{"$f":"MAP!$B$2","v":"en"},"-5020100.htm","https://publications.europa.eu/code/en/en-5020100.htm","annex-c-miscellaneous","annex-c-miscellaneous",null,"https://style-guide.europa.eu/en/content/-/isg/topic?identifier= annex-c-miscellaneous"]
["https://publications.europa.eu/code/","en","-4000000.htm","https://publications.europa.eu/code/en/en-4000000.htm","part-four-publications-in-a-specific-language","part-four-publications-in-a-specific-language",null,"https://style-guide.europa.eu/en/content/-/isg/topic?identifier= part-four-publications-in-a-specific-language"]
["https://publications.europa.eu/code/","en","-4100000.htm","https://publications.europa.eu/code/en/en-4100000.htm","10-house-rules-text-preparation","10-house-rules-text-preparation",null,"https://style-guide.europa.eu/en/content/-/isg/topic?identifier= 10-house-rules-text-preparation"]
["https://publications.europa.eu/code/","en","-4100100.htm","https://publications.europa.eu/code/en/en-4100100.htm","10.1-punctuation","10.1-punctuation",null,"https://style-guide.europa.eu/en/content/-/isg/topic?identifier= 10.1-punctuation"]
["https://publications.europa.eu/code/","en","-4100102.htm","https://publications.europa.eu/code/en/en-4100102.htm","10.1.2-question-mark","10.1.2-question-mark",null,"https://style-guide.europa.eu/en/content/-/isg/topic?identifier= 10.1.2-question-mark"]
["https://publications.europa.eu/code/","en","-4100103.htm","https://publications.europa.eu/code/en/en-4100103.htm","10.1.3-exclamation-mark","10.1.3-exclamation-mark",null,"https://style-guide.europa.eu/en/content/-/isg/topic?identifier= 10.1.3-exclamation-mark"]
["https://publications.europa.eu/code/","en","-4100104.htm","https://publications.europa.eu/code/en/en-4100104.htm","10.1.4-colon","10.1.4-colon",null,"https://style-guide.europa.eu/en/content/-/isg/topic?identifier= 10.1.4-colon"]
["https://publications.europa.eu/code/","en","-4100105.htm","https://publications.europa.eu/code/en/en-4100105.htm","10.1.5-semicolon","10.1.5-semicolon",null,"https://style-guide.europa.eu/en/content/-/isg/topic?identifier= 10.1.5-semicolon"]
["https://publications.europa.eu/code/","en","-4100106.htm","https://publications.europa.eu/code/en/en-4100106.htm","10.1.6-comma","10.1.6-comma",null,"https://style-guide.europa.eu/en/content/-/isg/topic?identifier= 10.1.6-comma"]
["https://publications.europa.eu/code/","en","-4100107.htm","https://publications.europa.eu/code/en/en-4100107.htm","10.1.7-brackets","10.1.7-brackets",null,"https://style-guide.europa.eu/en/content/-/isg/topic?identifier= 10.1.7-brackets"]
["https://publications.europa.eu/code/","en","-4100108.htm","https://publications.europa.eu/code/en/en-4100108.htm","10.1.8-dashes-and-hyphens","10.1.8-dashes-and-hyphens",null,"https://style-guide.europa.eu/en/content/-/isg/topic?identifier= 10.1.8-dashes-and-hyphens"]
["https://publications.europa.eu/code/","en","-4100109.htm","https://publications.europa.eu/code/en/en-4100109.htm","10.1.9-quotation-marks","10.1.9-quotation-marks",null,"https://style-guide.europa.eu/en/content/-/isg/topic?identifier= 10.1.9-quotation-marks"]
["https://publications.europa.eu/code/","en","-4100110.htm","https://publications.europa.eu/code/en/en-4100110.htm","10.1.10-ellipsis","10.1.10-ellipsis",null,"https://style-guide.europa.eu/en/content/-/isg/topic?identifier= 10.1.10-ellipsis"]
["https://publications.europa.eu/code/","en","-4100111.htm","https://publications.europa.eu/code/en/en-4100111.htm","10.1.11-forward-slash","10.1.11-forward-slash",null,"https://style-guide.europa.eu/en/content/-/isg/topic?identifier= 10.1.11-forward-slash"]
["https://publications.europa.eu/code/","en","-4100112.htm","https://publications.europa.eu/code/en/en-4100112.htm","10.1.12-apostrophe","10.1.12-apostrophe",null,"https://style-guide.europa.eu/en/content/-/isg/topic?identifier= 10.1.12-apostrophe"]
["https://publications.europa.eu/code/","en","-4100200.htm","https://publications.europa.eu/code/en/en-4100200.htm","10.2-verbs","10.2-verbs",null,"https://style-guide.europa.eu/en/content/-/isg/topic?identifier= 10.2-verbs"]
["https://publications.europa.eu/code/","en","-4100300.htm","https://publications.europa.eu/code/en/en-4100300.htm","10.3-spelling","10.3-spelling",null,"https://style-guide.europa.eu/en/content/-/isg/topic?identifier= 10.3-spelling"]
["https://publications.europa.eu/code/","en","-4100400.htm","https://publications.europa.eu/code/en/en-4100400.htm","10.4-upper-and-lower-case","10.4-upper-and-lower-case",null,"https://style-guide.europa.eu/en/content/-/isg/topic?identifier= 10.4-upper-and-lower-case"]
["https://publications.europa.eu/code/","en","-4100500.htm","https://publications.europa.eu/code/en/en-4100500.htm","10.5-numbers-dates-and-time","10.5-numbers-dates-and-time",null,"https://style-guide.europa.eu/en/content/-/isg/topic?identifier= 10.5-numbers-dates-and-time"]
["https://publications.europa.eu/code/","en","-4100600.htm","https://publications.europa.eu/code/en/en-4100600.htm","10.6-gender-neutral-language","10.6-gender-neutral-language",null,{"$f":"_xlfn.CONCAT(\"https://style-guide.europa.eu/\",B130,\"/content/-/isg/topic?identifier= \",E130)","v":"https://style-guide.europa.eu/en/content/-/isg/topic?identifier= 10.6-gender-neutral-language"}]
["https://publications.europa.eu/code/","en","-4100700.htm",{"$f":"_xlfn.CONCAT(A131,B131,\"/\",B131,C131)","v":"https://publications.europa.eu/code/en/en-4100700.htm"},"10.7-italics","10.7-italics",null,"https://style-guide.europa.eu/en/content/-/isg/topic?identifier= 10.7-italics"]
["https://publications.europa.eu/code/","en","-4100800.htm","https://publications.europa.eu/code/en/en-4100800.htm","10.8-abbreviations-and-symbols","10.8-abbreviations-and-symbols",null,"https://style-guide.europa.eu/en/content/-/isg/topic?identifier= 10.8-abbreviations-and-symbols"]
["https://publications.europa.eu/code/","en","-4100900.htm","https://publications.europa.eu/code/en/en-4100900.htm","10.9-referring-to-eu-and-member-states","10.9-referring-to-eu-and-member-states",null,"https://style-guide.europa.eu/en/content/-/isg/topic?identifier= 10.9-referring-to-eu-and-member-states"]
["https://publications.europa.eu/code/","en","-4110000.htm","https://publications.europa.eu/code/en/en-4110000.htm","11-reference-works","11-reference-works",null,"https://style-guide.europa.eu/en/content/-/isg/topic?identifier= 11-reference-works"]
["https://publications.europa.eu/code/","bg","-4000000.htm","https://publications.europa.eu/code/bg/bg-4000000.htm","part-four-publications-in-a-specific-language","part-four-publications-in-a-specific-language",null,"https://style-guide.europa.eu/bg/content/-/isg/topic?identifier= part-four-publications-in-a-specific-language"]
["https://publications.europa.eu/code/","bg","-4100000.htm","https://publications.europa.eu/code/bg/bg-4100000.htm","10-punctuation","10-punctuation",null,"https://style-guide.europa.eu/bg/content/-/isg/topic?identifier= 10-punctuation"]
["https://publications.europa.eu/code/","bg","-4100100.htm","https://publications.europa.eu/code/bg/bg-4100100.htm","10.1-punctuation","10.1-punctuation",null,"https://style-guide.europa.eu/bg/content/-/isg/topic?identifier= 10.1-punctuation"]
["https://publications.europa.eu/code/","bg","-4100102.htm","https://publications.europa.eu/code/bg/bg-4100102.htm","10.1.2-comma","10.1.2-comma",null,"https://style-guide.europa.eu/bg/content/-/isg/topic?identifier= 10.1.2-comma"]
["https://publications.europa.eu/code/","bg","-4100103.htm","https://publications.europa.eu/code/bg/bg-4100103.htm","10.1.3-semicolon","10.1.3-semicolon",null,"https://style-guide.europa.eu/bg/content/-/isg/topic?identifier= 10.1.3-semicolon"]
["https://publications.europa.eu/code/","bg","-4100104.htm","https://publications.europa.eu/code/bg/bg-4100104.htm","10.1.4-colon","10.1.4-colon",null,"https://style-guide.europa.eu/bg/content/-/isg/topic?identifier= 10.1.4-colon"]
["https://publications.europa.eu/code/","bg","-4100105.htm","https://publications.europa.eu/code/bg/bg-4100105.htm","10.1.5-round-brackets","10.1.5-round-brackets",null,"https://style-guide.europa.eu/bg/content/-/isg/topic?identifier= 10.1.5-round-brackets"]
["https://publications.europa.eu/code/","bg","-4100106.htm","https://publications.europa.eu/code/bg/bg-4100106.htm","10.1.6-square-brackets","10.1.6-square-brackets",null,"https://style-guide.europa.eu/bg/content/-/isg/topic?identifier= 10.1.6-square-brackets"]
["https://publications.europa.eu/code/","bg","-4100107.htm","https://publications.europa.eu/code/bg/bg-4100107.htm","10.1.7-quotation-marks","10.1.7-quotation-marks",null,"https://style-guide.europa.eu/bg/content/-/isg/topic?identifier= 10.1.7-quotation-marks"]
["https://publications.europa.eu/code/","bg","-4100108.htm","https://publications.europa.eu/code/bg/bg-4100108.htm","10.1.8-m-dash","10.1.8-m-dash",null,"https://style-guide.europa.eu/bg/content/-/isg/topic?identifier= 10.1.8-m-dash"]
["https://publications.europa.eu/code/","bg","-4100109.htm","https://publications.europa.eu/code/bg/bg-4100109.htm","10.1.9-n-dash","10.1.9-n-dash",null,"https://style-guide.europa.eu/bg/content/-/isg/topic?identifier= 10.1.9-n-dash"]
["https://publications.europa.eu/code/","bg","-4100110.htm","https://publications.europa.eu/code/bg/bg-4100110.htm","10.1.10-hyphen","10.1.10-hyphen",null,"https://style-guide.europa.eu/bg/content/-/isg/topic?identifier= 10.1.10-hyphen"]
["https://publications.europa.eu/code/","bg","-4100111.htm","https://publications.europa.eu/code/bg/bg-4100111.htm","10.1.11-forward-slash","10.1.11-forward-slash",null,"https://style-guide.europa.eu/bg/content/-/isg/topic?identifier= 10.1.11-forward-slash"]
["https://publications.europa.eu/code/","bg","-4100112.htm","https://publications.europa.eu/code/bg/bg-4100112.htm","10.1.12-ellipsis","10.1.12-ellipsis",null,"https://style-guide.europa.eu/bg/content/-/isg/topic?identifier= 10.1.12-ellipsis"]
["https://publications.europa.eu/code/","bg","-4100200.htm","https://publications.europa.eu/code/bg/bg-4100200.htm","10.2-upper-case","10.2-upper-case",null,"https://style-guide.europa.eu/bg/content/-/isg/topic?identifier= 10.2-upper-case"]
["https://publications.europa.eu/code/","bg","-4100300.htm","https://publications.europa.eu/code/bg/bg-4100300.htm","10.3-writing-of-compound-words","10.3-writing-of-compound-words",null,"https://style-guide.europa.eu/bg/content/-/isg/topic?identifier= 10.3-writing-of-compound-words"]
["https://publications.europa.eu/code/","bg","-4100400.htm","https://publications.europa.eu/code/bg/bg-4100400.htm","10.4-abbreviations-and-acronyms","10.4-abbreviations-and-acronyms",null,"https://style-guide.europa.eu/bg/content/-/isg/topic?identifier= 10.4-abbreviations-and-acronyms"]
["https://publications.europa.eu/code/","bg","-4100500.htm","https://publications.europa.eu/code/bg/bg-4100500.htm","10.5-spelling-some-words-and-forms","10.5-spelling-some-words-and-forms",null,"https://style-guide.europa.eu/bg/content/-/isg/topic?identifier= 10.5-spelling-some-words-and-forms"]
["https://publications.europa.eu/code/","bg","-4110000.htm","https://publications.europa.eu/code/bg/bg-4110000.htm","11-reference-works","11-reference-works",null,"https://style-guide.europa.eu/bg/content/-/isg/topic?identifier= 11-reference-works"]
["https://publications.europa.eu/code/","cs","-4000000.htm","https://publications.europa.eu/code/cs/cs-4000000.htm","part-four-publications-in-a-specific-language","part-four-publications-in-a-specific-language",null,"https://style-guide.europa.eu/cs/content/-/isg/topic?identifier= part-four-publications-in-a-specific-language"]
["https://publications.europa.eu/code/","cs","-4100000.htm","https://publications.europa.eu/code/cs/cs-4100000.htm","10-house-rules-text-preparation","10-house-rules-text-preparation",null,"https://style-guide.europa.eu/cs/content/-/isg/topic?identifier= 10-house-rules-text-preparation"]
["https://publications.europa.eu/code/","cs","-4100100.htm","https://publications.europa.eu/code/cs/cs-4100100.htm","10.1-punctuation","10.1-punctuation",null,"https://style-guide.europa.eu/cs/content/-/isg/topic?identifier= 10.1-punctuation"]
["https://publications.europa.eu/code/","cs","-4100200.htm","https://publications.europa.eu/code/cs/cs-4100200.htm","10.2-verbs","10.2-verbs",null,"https://style-guide.europa.eu/cs/content/-/isg/topic?identifier= 10.2-verbs"]
["https://publications.europa.eu/code/","cs","-4100300.htm","https://publications.europa.eu/code/cs/cs-4100300.htm","10.3-spelling-stylistics-and-grammar","10.3-spelling-stylistics-and-grammar",null,"https://style-guide.europa.eu/cs/content/-/isg/topic?identifier= 10.3-spelling-stylistics-and-grammar"]
["https://publications.europa.eu/code/","cs","-4100400.htm","https://publications.europa.eu/code/cs/cs-4100400.htm","10.4-upper-case","10.4-upper-case",null,"https://style-guide.europa.eu/cs/content/-/isg/topic?identifier= 10.4-upper-case"]
["https://publications.europa.eu/code/","cs","-4100500.htm","https://publications.europa.eu/code/cs/cs-4100500.htm","10.5-numbers-dates-and-time","10.5-numbers-dates-and-time",null,"https://style-guide.europa.eu/cs/content/-/isg/topic?identifier= 10.5-numbers-dates-and-time"]
["https://publications.europa.eu/code/","cs","-4100600.htm","https://publications.europa.eu/code/cs/cs-4100600.htm","10.6-italics","10.6-italics",null,"https://style-guide.europa.eu/cs/content/-/isg/topic?identifier= 10.6-italics"]
["https://publications.europa.eu/code/","cs","-4100700.htm","https://publications.europa.eu/code/cs/cs-4100700.htm","10.7-abbreviations-acronyms-symbols","10.7-abbreviations-acronyms-symbols",null,"https://style-guide.europa.eu/cs/content/-/isg/topic?identifier= 10.7-abbreviations-acronyms-symbols"]
["https://publications.europa.eu/code/","cs","-4100800.htm","https://publications.europa.eu/code/cs/cs-4100800.htm","10.8-references","10.8-references",null,"https://style-guide.europa.eu/cs/content/-/isg/topic?identifier= 10.8-references"]
["https://publications.europa.eu/code/","cs","-4100900.htm","https://publications.europa.eu/code/cs/cs-4100900.htm","10.9-publication","10.9-publication",null,"https://style-guide.europa.eu/cs/content/-/isg/topic?identifier= 10.9-publication"]
["https://publications.europa.eu/code/","cs","-4110000.htm","https://publications.europa.eu/code/cs/cs-4110000.htm","11-reference-works","11-reference-works",null,"https://style-guide.europa.eu/cs/content/-/isg/topic?identifier= 11-reference-works"]
["https://publications.europa.eu/code/","cs","-5010100.htm","https://publications.europa.eu/code/cs/cs-5010100.htm","annex-b1-amending-provisions","annex-b1-amending-provisions",null,"https://style-guide.europa.eu/cs/content/-/isg/topic?identifier= annex-b1-amending-provisions"]
["https://publications.europa.eu/code/","cs","-5010200.htm","https://publications.europa.eu/code/cs/cs-5010200.htm","annex-b2-punctuation-in-lists","annex-b2-punctuation-in-lists",null,"https://style-guide.europa.eu/cs/content/-/isg/topic?identifier= annex-b2-punctuation-in-lists"]
["https://publications.europa.eu/code/","da","-4000000.htm","https://publications.europa.eu/code/da/da-4000000.htm","part-four-publications-in-a-specific-language","part-four-publications-in-a-specific-language",null,"https://style-guide.europa.eu/da/content/-/isg/topic?identifier= part-four-publications-in-a-specific-language"]
["https://publications.europa.eu/code/","da","-4100000.htm","https://publications.europa.eu/code/da/da-4100000.htm","10-spelling-rules","10-spelling-rules",null,"https://style-guide.europa.eu/da/content/-/isg/topic?identifier= 10-spelling-rules"]
["https://publications.europa.eu/code/","da","-4100100.htm","https://publications.europa.eu/code/da/da-4100100.htm","10.1-various-rules","10.1-various-rules",null,"https://style-guide.europa.eu/da/content/-/isg/topic?identifier= 10.1-various-rules"]
["https://publications.europa.eu/code/","da","-4100200.htm","https://publications.europa.eu/code/da/da-4100200.htm","10.2-numbers-and-dates","10.2-numbers-and-dates",null,"https://style-guide.europa.eu/da/content/-/isg/topic?identifier= 10.2-numbers-and-dates"]
["https://publications.europa.eu/code/","da","-4100300.htm","https://publications.europa.eu/code/da/da-4100300.htm","10.3-list-of-words-with-special-spelling","10.3-list-of-words-with-special-spelling",null,"https://style-guide.europa.eu/da/content/-/isg/topic?identifier= 10.3-list-of-words-with-special-spelling"]
["https://publications.europa.eu/code/","da","-4100400.htm","https://publications.europa.eu/code/da/da-4100400.htm","10.4-grammatical-expressions","10.4-grammatical-expressions",null,"https://style-guide.europa.eu/da/content/-/isg/topic?identifier= 10.4-grammatical-expressions"]
["https://publications.europa.eu/code/","da","-4110000.htm","https://publications.europa.eu/code/da/da-4110000.htm","11-reference-works","11-reference-works",null,"https://style-guide.europa.eu/da/content/-/isg/topic?identifier= 11-reference-works"]
["https://publications.europa.eu/code/","de","-4000000.htm","https://publications.europa.eu/code/de/de-4000000.htm","part-four-publications-in-a-specific-language","part-four-publications-in-a-specific-language",null,"https://style-guide.europa.eu/de/content/-/isg/topic?identifier= part-four-publications-in-a-specific-language"]
["https://publications.europa.eu/code/","de","-4100000.htm","https://publications.europa.eu/code/de/de-4100000.htm","10-house-rules-text-preparation","10-house-rules-text-preparation",null,"https://style-guide.europa.eu/de/content/-/isg/topic?identifier= 10-house-rules-text-preparation"]
["https://publications.europa.eu/code/","de","-4100100.htm","https://publications.europa.eu/code/de/de-4100100.htm","10.1-abbreviations","10.1-abbreviations",null,"https://style-guide.europa.eu/de/content/-/isg/topic?identifier= 10.1-abbreviations"]
["https://publications.europa.eu/code/","de","-4100200.htm","https://publications.europa.eu/code/de/de-4100200.htm","10.2-abbreviations-and-acronyms","10.2-abbreviations-and-acronyms",null,"https://style-guide.europa.eu/de/content/-/isg/topic?identifier= 10.2-abbreviations-and-acronyms"]
["https://publications.europa.eu/code/","de","-4100300.htm","https://publications.europa.eu/code/de/de-4100300.htm","10.3-dates","10.3-dates",null,"https://style-guide.europa.eu/de/content/-/isg/topic?identifier= 10.3-dates"]
["https://publications.europa.eu/code/","de","-4100400.htm","https://publications.europa.eu/code/de/de-4100400.htm","10.4-ampersand","10.4-ampersand",null,"https://style-guide.europa.eu/de/content/-/isg/topic?identifier= 10.4-ampersand"]
["https://publications.europa.eu/code/","de","-4100500.htm","https://publications.europa.eu/code/de/de-4100500.htm","10.5-degree-sign","10.5-degree-sign",null,"https://style-guide.europa.eu/de/content/-/isg/topic?identifier= 10.5-degree-sign"]
["https://publications.europa.eu/code/","de","-4100600.htm","https://publications.europa.eu/code/de/de-4100600.htm","10.6-brackets","10.6-brackets",null,"https://style-guide.europa.eu/de/content/-/isg/topic?identifier= 10.6-brackets"]
["https://publications.europa.eu/code/","de","-4100700.htm","https://publications.europa.eu/code/de/de-4100700.htm","10.7-paragraph-mark","10.7-paragraph-mark",null,"https://style-guide.europa.eu/de/content/-/isg/topic?identifier= 10.7-paragraph-mark"]
["https://publications.europa.eu/code/","de","-4100800.htm","https://publications.europa.eu/code/de/de-4100800.htm","10.8-mathematical-symbols","10.8-mathematical-symbols",null,"https://style-guide.europa.eu/de/content/-/isg/topic?identifier= 10.8-mathematical-symbols"]
["https://publications.europa.eu/code/","de","-4100900.htm","https://publications.europa.eu/code/de/de-4100900.htm","10.9-arithmetic-signs","10.9-arithmetic-signs",null,"https://style-guide.europa.eu/de/content/-/isg/topic?identifier= 10.9-arithmetic-signs"]
["https://publications.europa.eu/code/","de","-4101000.htm","https://publications.europa.eu/code/de/de-4101000.htm","10.10-hyphen-forward-slash-en-dash","10.10-hyphen-forward-slash-en-dash",null,"https://style-guide.europa.eu/de/content/-/isg/topic?identifier= 10.10-hyphen-forward-slash-en-dash"]
["https://publications.europa.eu/code/","de","-4110000.htm","https://publications.europa.eu/code/de/de-4110000.htm","11-reference-works","11-reference-works",null,"https://style-guide.europa.eu/de/content/-/isg/topic?identifier= 11-reference-works"]
["https://publications.europa.eu/code/","el","-4000000.htm","https://publications.europa.eu/code/el/el-4000000.htm","part-four-publications-in-a-specific-language","part-four-publications-in-a-specific-language",null,"https://style-guide.europa.eu/el/content/-/isg/topic?identifier= part-four-publications-in-a-specific-language"]
["https://publications.europa.eu/code/","el","-4100000.htm","https://publications.europa.eu/code/el/el-4100000.htm","10-house-rules-text-preparation","10-house-rules-text-preparation",null,"https://style-guide.europa.eu/el/content/-/isg/topic?identifier= 10-house-rules-text-preparation"]
["https://publications.europa.eu/code/","el","-4100100.htm","https://publications.europa.eu/code/el/el-4100100.htm","10.1-punctuation","10.1-punctuation",null,"https://style-guide.europa.eu/el/content/-/isg/topic?identifier= 10.1-punctuation"]
["https://publications.europa.eu/code/","el","-4100102.htm","https://publications.europa.eu/code/el/el-4100102.htm","10.1.2-comma","10.1.2-comma",null,"https://style-guide.europa.eu/el/content/-/isg/topic?identifier= 10.1.2-comma"]
["https://publications.europa.eu/code/","el","-4100103.htm","https://publications.europa.eu/code/el/el-4100103.htm","10.1.3-semicolon","10.1.3-semicolon",null,"https://style-guide.europa.eu/el/content/-/isg/topic?identifier= 10.1.3-semicolon"]
["https://publications.europa.eu/code/","el","-4100104.htm","https://publications.europa.eu/code/el/el-4100104.htm","10.1.4-colon","10.1.4-colon",null,"https://style-guide.europa.eu/el/content/-/isg/topic?identifier= 10.1.4-colon"]
["https://publications.europa.eu/code/","el","-4100105.htm","https://publications.europa.eu/code/el/el-4100105.htm","10.1.5-round-brackets","10.1.5-round-brackets",null,{"$f":"_xlfn.CONCAT(\"https://style-guide.europa.eu/\",B194,\"/content/-/isg/topic?identifier= \",E194)","v":"https://style-guide.europa.eu/el/content/-/isg/topic?identifier= 10.1.5-round-brackets"}]
["https://publications.europa.eu/code/","el","-4100106.htm",{"$f":"_xlfn.CONCAT(A195,B195,\"/\",B195,C195)","v":"https://publications.europa.eu/code/el/el-4100106.htm"},"10.1.6-square-brackets","10.1.6-square-brackets",null,"https://style-guide.europa.eu/el/content/-/isg/topic?identifier= 10.1.6-square-brackets"]
["https://publications.europa.eu/code/","el","-4100107.htm","https://publications.europa.eu/code/el/el-4100107.htm","10.1.7-quotation-marks","10.1.7-quotation-marks",null,"https://style-guide.europa.eu/el/content/-/isg/topic?identifier= 10.1.7-quotation-marks"]
["https://publications.europa.eu/code/","el","-4100108.htm","https://publications.europa.eu/code/el/el-4100108.htm","10.1.8-hyphen-dashes","10.1.8-hyphen-dashes",null,"https://style-guide.europa.eu/el/content/-/isg/topic?identifier= 10.1.8-hyphen-dashes"]
["https://publications.europa.eu/code/","el","-4100109.htm","https://publications.europa.eu/code/el/el-4100109.htm","10.1.9-ellipsis","10.1.9-ellipsis",null,"https://style-guide.europa.eu/el/content/-/isg/topic?identifier= 10.1.9-ellipsis"]
["https://publications.europa.eu/code/","el","-4100110.htm","https://publications.europa.eu/code/el/el-4100110.htm","10.1.10-forward-slash","10.1.10-forward-slash",null,"https://style-guide.europa.eu/el/content/-/isg/topic?identifier= 10.1.10-forward-slash"]
["https://publications.europa.eu/code/","el","-4100200.htm","https://publications.europa.eu/code/el/el-4100200.htm","10.2-italics","10.2-italics",null,"https://style-guide.europa.eu/el/content/-/isg/topic?identifier= 10.2-italics"]
["https://publications.europa.eu/code/","el","-4100300.htm","https://publications.europa.eu/code/el/el-4100300.htm","10.3-upper-and-lower-case","10.3-upper-and-lower-case",null,"https://style-guide.europa.eu/el/content/-/isg/topic?identifier= 10.3-upper-and-lower-case"]
["https://publications.europa.eu/code/","el","-4100400.htm","https://publications.europa.eu/code/el/el-4100400.htm","10.4-final-n","10.4-final-n",null,"https://style-guide.europa.eu/el/content/-/isg/topic?identifier= 10.4-final-n"]
["https://publications.europa.eu/code/","el","-4100500.htm","https://publications.europa.eu/code/el/el-4100500.htm","10.5-foreign-proper-nouns","10.5-foreign-proper-nouns",null,"https://style-guide.europa.eu/el/content/-/isg/topic?identifier= 10.5-foreign-proper-nouns"]
["https://publications.europa.eu/code/","el","-4100600.htm","https://publications.europa.eu/code/el/el-4100600.htm","10.6-abbreviations","10.6-abbreviations",null,"https://style-guide.europa.eu/el/content/-/isg/topic?identifier= 10.6-abbreviations"]
["https://publications.europa.eu/code/","el","-4100700.htm","https://publications.europa.eu/code/el/el-4100700.htm","10.7-acronyms","10.7-acronyms",null,"https://style-guide.europa.eu/el/content/-/isg/topic?identifier= 10.7-acronyms"]
["https://publications.europa.eu/code/","el","-4100800.htm","https://publications.europa.eu/code/el/el-4100800.htm","10.8-numbers-dates-and-time","10.8-numbers-dates-and-time",null,"https://style-guide.europa.eu/el/content/-/isg/topic?identifier= 10.8-numbers-dates-and-time"]
["https://publications.europa.eu/code/","el","-4100900.htm","https://publications.europa.eu/code/el/el-4100900.htm","10.9-problems-of-translating-into-modern-greek","10.9-problems-of-translating-into-modern-greek",null,"https://style-guide.europa.eu/el/content/-/isg/topic?identifier= 10.9-problems-of-translating-into-modern-greek"]
["https://publications.europa.eu/code/","el","-4101000.htm","https://publications.europa.eu/code/el/el-4101000.htm","10.10-differences-greek-and-eu-legislative-drafting","10.10-differences-greek-and-eu-legislative-drafting",null,"https://style-guide.europa.eu/el/content/-/isg/topic?identifier= 10.10-differences-greek-and-eu-legislative-drafting"]
["https://publications.europa.eu/code/","el","-4110000.htm","https://publications.europa.eu/code/el/el-4110000.htm","11-reference-works","11-reference-works",null,"https://style-guide.europa.eu/el/content/-/isg/topic?identifier= 11-reference-works"]
["https://publications.europa.eu/code/","es","-4000000.htm","https://publications.europa.eu/code/es/es-4000000.htm","part-four-publications-in-a-specific-language","part-four-publications-in-a-specific-language",null,"https://style-guide.europa.eu/es/content/-/isg/topic?identifier= part-four-publications-in-a-specific-language"]
["https://publications.europa.eu/code/","es","-4100000.htm","https://publications.europa.eu/code/es/es-4100000.htm","10-formal-text-presentation","10-formal-text-presentation",null,"https://style-guide.europa.eu/es/content/-/isg/topic?identifier= 10-formal-text-presentation"]
["https://publications.europa.eu/code/","es","-4100100.htm","https://publications.europa.eu/code/es/es-4100100.htm","10.1-punctuation","10.1-punctuation",null,"https://style-guide.europa.eu/es/content/-/isg/topic?identifier= 10.1-punctuation"]
["https://publications.europa.eu/code/","es","-4100102.htm","https://publications.europa.eu/code/es/es-4100102.htm","10.1.2-full-stop","10.1.2-full-stop",null,"https://style-guide.europa.eu/es/content/-/isg/topic?identifier= 10.1.2-full-stop"]
["https://publications.europa.eu/code/","es","-4100103.htm","https://publications.europa.eu/code/es/es-4100103.htm","10.1.3-semicolon","10.1.3-semicolon",null,"https://style-guide.europa.eu/es/content/-/isg/topic?identifier= 10.1.3-semicolon"]
["https://publications.europa.eu/code/","es","-4100104.htm","https://publications.europa.eu/code/es/es-4100104.htm","10.1.4-colon","10.1.4-colon",null,"https://style-guide.europa.eu/es/content/-/isg/topic?identifier= 10.1.4-colon"]
["https://publications.europa.eu/code/","es","-4100105.htm","https://publications.europa.eu/code/es/es-4100105.htm","10.1.5-ellipsis","10.1.5-ellipsis",null,"https://style-guide.europa.eu/es/content/-/isg/topic?identifier= 10.1.5-ellipsis"]
["https://publications.europa.eu/code/","es","-4100106.htm","https://publications.europa.eu/code/es/es-4100106.htm","10.1.6-round-brackets","10.1.6-round-brackets",null,"https://style-guide.europa.eu/es/content/-/isg/topic?identifier= 10.1.6-round-brackets"]
["https://publications.europa.eu/code/","es","-4100107.htm","https://publications.europa.eu/code/es/es-4100107.htm","10.1.7-square-brackets","10.1.7-square-brackets",null,"https://style-guide.europa.eu/es/content/-/isg/topic?identifier= 10.1.7-square-brackets"]
["https://publications.europa.eu/code/","es","-4100108.htm","https://publications.europa.eu/code/es/es-4100108.htm","10.1.8-dashes","10.1.8-dashes",null,"https://style-guide.europa.eu/es/content/-/isg/topic?identifier= 10.1.8-dashes"]
["https://publications.europa.eu/code/","es","-4100109.htm","https://publications.europa.eu/code/es/es-4100109.htm","10.1.9-hyphen","10.1.9-hyphen",null,"https://style-guide.europa.eu/es/content/-/isg/topic?identifier= 10.1.9-hyphen"]
["https://publications.europa.eu/code/","es","-4100110.htm","https://publications.europa.eu/code/es/es-4100110.htm","10.1.10-forward-slash","10.1.10-forward-slash",null,"https://style-guide.europa.eu/es/content/-/isg/topic?identifier= 10.1.10-forward-slash"]
["https://publications.europa.eu/code/","es","-4100111.htm","https://publications.europa.eu/code/es/es-4100111.htm","10.1.11-question-and-exclamation-mark","10.1.11-question-and-exclamation-mark",null,"https://style-guide.europa.eu/es/content/-/isg/topic?identifier= 10.1.11-question-and-exclamation-mark"]
["https://publications.europa.eu/code/","es","-4100112.htm","https://publications.europa.eu/code/es/es-4100112.htm","10.1.12-quotation-marks","10.1.12-quotation-marks",null,"https://style-guide.europa.eu/es/content/-/isg/topic?identifier= 10.1.12-quotation-marks"]
["https://publications.europa.eu/code/","es","-4100113.htm","https://publications.europa.eu/code/es/es-4100113.htm","10.1.13-accentuation","10.1.13-accentuation",null,"https://style-guide.europa.eu/es/content/-/isg/topic?identifier= 10.1.13-accentuation"]
["https://publications.europa.eu/code/","es","-4100114.htm","https://publications.europa.eu/code/es/es-4100114.htm","10.1.14-typographic-conventions","10.1.14-typographic-conventions",null,"https://style-guide.europa.eu/es/content/-/isg/topic?identifier= 10.1.14-typographic-conventions"]
["https://publications.europa.eu/code/","es","-4100200.htm","https://publications.europa.eu/code/es/es-4100200.htm","10.2-upper-and-lower-case","10.2-upper-and-lower-case",null,"https://style-guide.europa.eu/es/content/-/isg/topic?identifier= 10.2-upper-and-lower-case"]
["https://publications.europa.eu/code/","es","-4100202.htm","https://publications.europa.eu/code/es/es-4100202.htm","10.2.2-denominations-related-to-legal-or-intellectual-activity","10.2.2-denominations-related-to-legal-or-intellectual-activity",null,"https://style-guide.europa.eu/es/content/-/isg/topic?identifier= 10.2.2-denominations-related-to-legal-or-intellectual-activity"]
["https://publications.europa.eu/code/","es","-4100203.htm","https://publications.europa.eu/code/es/es-4100203.htm","10.2.3-publications-and-creative-works","10.2.3-publications-and-creative-works",null,"https://style-guide.europa.eu/es/content/-/isg/topic?identifier= 10.2.3-publications-and-creative-works"]
["https://publications.europa.eu/code/","es","-4100204.htm","https://publications.europa.eu/code/es/es-4100204.htm","10.2.4-people","10.2.4-people",null,"https://style-guide.europa.eu/es/content/-/isg/topic?identifier= 10.2.4-people"]
["https://publications.europa.eu/code/","es","-4100205.htm","https://publications.europa.eu/code/es/es-4100205.htm","10.2.5-places","10.2.5-places",null,"https://style-guide.europa.eu/es/content/-/isg/topic?identifier= 10.2.5-places"]
["https://publications.europa.eu/code/","es","-4100206.htm","https://publications.europa.eu/code/es/es-4100206.htm","10.2.6-miscellaneous","10.2.6-miscellaneous",null,"https://style-guide.europa.eu/es/content/-/isg/topic?identifier= 10.2.6-miscellaneous"]
["https://publications.europa.eu/code/","es","-4100300.htm","https://publications.europa.eu/code/es/es-4100300.htm","10.3-numerals","10.3-numerals",null,"https://style-guide.europa.eu/es/content/-/isg/topic?identifier= 10.3-numerals"]
["https://publications.europa.eu/code/","es","-4100302.htm","https://publications.europa.eu/code/es/es-4100302.htm","10.3.2-ordinal-numerals","10.3.2-ordinal-numerals",null,"https://style-guide.europa.eu/es/content/-/isg/topic?identifier= 10.3.2-ordinal-numerals"]
["https://publications.europa.eu/code/","es","-4100303.htm","https://publications.europa.eu/code/es/es-4100303.htm","10.3.3-roman-numerals","10.3.3-roman-numerals",null,"https://style-guide.europa.eu/es/content/-/isg/topic?identifier= 10.3.3-roman-numerals"]
["https://publications.europa.eu/code/","es","-4100400.htm","https://publications.europa.eu/code/es/es-4100400.htm","10.4-abbreviations","10.4-abbreviations",null,"https://style-guide.europa.eu/es/content/-/isg/topic?identifier= 10.4-abbreviations"]
["https://publications.europa.eu/code/","es","-4100500.htm","https://publications.europa.eu/code/es/es-4100500.htm","10.5-initialisms-and-acronyms","10.5-initialisms-and-acronyms",null,"https://style-guide.europa.eu/es/content/-/isg/topic?identifier= 10.5-initialisms-and-acronyms"]
["https://publications.europa.eu/code/","es","-4110000.htm","https://publications.europa.eu/code/es/es-4110000.htm","11-reference-works","11-reference-works",null,"https://style-guide.europa.eu/es/content/-/isg/topic?identifier= 11-reference-works"]
["https://publications.europa.eu/code/","es","-5010100.htm","https://publications.europa.eu/code/es/es-5010100.htm","annex-b1-use-of-italics","annex-b1-use-of-italics",null,"https://style-guide.europa.eu/es/content/-/isg/topic?identifier= annex-b1-use-of-italics"]
["https://publications.europa.eu/code/","es","-5010200.htm","https://publications.europa.eu/code/es/es-5010200.htm","annex-b2-upper-and-lower-case","annex-b2-upper-and-lower-case",null,"https://style-guide.europa.eu/es/content/-/isg/topic?identifier= annex-b2-upper-and-lower-case"]
["https://publications.europa.eu/code/","et","-4000000.htm","https://publications.europa.eu/code/et/et-4000000.htm","part-four-publications-in-a-specific-language","part-four-publications-in-a-specific-language",null,"https://style-guide.europa.eu/et/content/-/isg/topic?identifier= part-four-publications-in-a-specific-language"]
["https://publications.europa.eu/code/","et","-4100000.htm","https://publications.europa.eu/code/et/et-4100000.htm","10-house-rules-text-preparation","10-house-rules-text-preparation",null,"https://style-guide.europa.eu/et/content/-/isg/topic?identifier= 10-house-rules-text-preparation"]
["https://publications.europa.eu/code/","et","-4100100.htm","https://publications.europa.eu/code/et/et-4100100.htm","10.1-punctuation","10.1-punctuation",null,"https://style-guide.europa.eu/et/content/-/isg/topic?identifier= 10.1-punctuation"]
["https://publications.europa.eu/code/","et","-4100200.htm","https://publications.europa.eu/code/et/et-4100200.htm","10.2-singular-and-plural","10.2-singular-and-plural",null,"https://style-guide.europa.eu/et/content/-/isg/topic?identifier= 10.2-singular-and-plural"]
["https://publications.europa.eu/code/","et","-4100300.htm","https://publications.europa.eu/code/et/et-4100300.htm","10.3-upper-and-lower-case","10.3-upper-and-lower-case",null,"https://style-guide.europa.eu/et/content/-/isg/topic?identifier= 10.3-upper-and-lower-case"]
["https://publications.europa.eu/code/","et","-4100400.htm","https://publications.europa.eu/code/et/et-4100400.htm","10.4-numbers-dates-and-time","10.4-numbers-dates-and-time",null,"https://style-guide.europa.eu/et/content/-/isg/topic?identifier= 10.4-numbers-dates-and-time"]
["https://publications.europa.eu/code/","et","-4100500.htm","https://publications.europa.eu/code/et/et-4100500.htm","10.5-italics","10.5-italics",null,"https://style-guide.europa.eu/et/content/-/isg/topic?identifier= 10.5-italics"]
["https://publications.europa.eu/code/","et","-4100600.htm","https://publications.europa.eu/code/et/et-4100600.htm","10.6-abbreviation","10.6-abbreviation",null,"https://style-guide.europa.eu/et/content/-/isg/topic?identifier= 10.6-abbreviation"]
["https://publications.europa.eu/code/","et","-4100700.htm","https://publications.europa.eu/code/et/et-4100700.htm","10.7-miscellaneous","10.7-miscellaneous",null,"https://style-guide.europa.eu/et/content/-/isg/topic?identifier= 10.7-miscellaneous"]
["https://publications.europa.eu/code/","et","-4100800.htm","https://publications.europa.eu/code/et/et-4100800.htm","10.8-abbreviations-and-acronyms","10.8-abbreviations-and-acronyms",null,"https://style-guide.europa.eu/et/content/-/isg/topic?identifier= 10.8-abbreviations-and-acronyms"]
["https://publications.europa.eu/code/","et","-4110000.htm","https://publications.europa.eu/code/et/et-4110000.htm","11-reference-works","11-reference-works",null,"https://style-guide.europa.eu/et/content/-/isg/topic?identifier= 11-reference-works"]
["https://publications.europa.eu/code/","fi","-4000000.htm","https://publications.europa.eu/code/fi/fi-4000000.htm","part-four-publications-in-a-specific-language","part-four-publications-in-a-specific-language",null,"https://style-guide.europa.eu/fi/content/-/isg/topic?identifier= part-four-publications-in-a-specific-language"]
["https://publications.europa.eu/code/","fi","-4100000.htm","https://publications.europa.eu/code/fi/fi-4100000.htm","10-grammar-issues","10-grammar-issues",null,"https://style-guide.europa.eu/fi/content/-/isg/topic?identifier= 10-grammar-issues"]
["https://publications.europa.eu/code/","fi","-4100100.htm","https://publications.europa.eu/code/fi/fi-4100100.htm","10.1-upper-and-lower-case","10.1-upper-and-lower-case",null,"https://style-guide.europa.eu/fi/content/-/isg/topic?identifier= 10.1-upper-and-lower-case"]
["https://publications.europa.eu/code/","fi","-4100200.htm","https://publications.europa.eu/code/fi/fi-4100200.htm","10.2-numerals","10.2-numerals",null,"https://style-guide.europa.eu/fi/content/-/isg/topic?identifier= 10.2-numerals"]
["https://publications.europa.eu/code/","fi","-4100300.htm","https://publications.europa.eu/code/fi/fi-4100300.htm","10.3-dates","10.3-dates",null,"https://style-guide.europa.eu/fi/content/-/isg/topic?identifier= 10.3-dates"]
["https://publications.europa.eu/code/","fi","-4100400.htm","https://publications.europa.eu/code/fi/fi-4100400.htm","10.4-punctuation","10.4-punctuation",null,"https://style-guide.europa.eu/fi/content/-/isg/topic?identifier= 10.4-punctuation"]
["https://publications.europa.eu/code/","fi","-4100500.htm","https://publications.europa.eu/code/fi/fi-4100500.htm","10.5-hyphenation","10.5-hyphenation",null,"https://style-guide.europa.eu/fi/content/-/isg/topic?identifier= 10.5-hyphenation"]
["https://publications.europa.eu/code/","fi","-4100600.htm","https://publications.europa.eu/code/fi/fi-4100600.htm","10.6-singular-or-plural","10.6-singular-or-plural",null,{"$f":"_xlfn.CONCAT(\"https://style-guide.europa.eu/\",B258,\"/content/-/isg/topic?identifier= \",E258)","v":"https://style-guide.europa.eu/fi/content/-/isg/topic?identifier= 10.6-singular-or-plural"}]
["https://publications.europa.eu/code/","fi","-4100700.htm",{"$f":"_xlfn.CONCAT(A259,B259,\"/\",B259,C259)","v":"https://publications.europa.eu/code/fi/fi-4100700.htm"},"10.7-abbreviations","10.7-abbreviations",null,"https://style-guide.europa.eu/fi/content/-/isg/topic?identifier= 10.7-abbreviations"]
["https://publications.europa.eu/code/","fi","-4100800.htm","https://publications.europa.eu/code/fi/fi-4100800.htm","10.8-writing-together-and-apart","10.8-writing-together-and-apart",null,"https://style-guide.europa.eu/fi/content/-/isg/topic?identifier= 10.8-writing-together-and-apart"]
["https://publications.europa.eu/code/","fi","-4100900.htm","https://publications.europa.eu/code/fi/fi-4100900.htm","10.9-inflection-of-attributive-noun-or-title-of-honour","10.9-inflection-of-attributive-noun-or-title-of-honour",null,"https://style-guide.europa.eu/fi/content/-/isg/topic?identifier= 10.9-inflection-of-attributive-noun-or-title-of-honour"]
["https://publications.europa.eu/code/","fi","-4101000.htm","https://publications.europa.eu/code/fi/fi-4101000.htm","10.10-attaching-endings-to-foreign-names","10.10-attaching-endings-to-foreign-names",null,"https://style-guide.europa.eu/fi/content/-/isg/topic?identifier= 10.10-attaching-endings-to-foreign-names"]
["https://publications.europa.eu/code/","fi","-4101100.htm","https://publications.europa.eu/code/fi/fi-4101100.htm","10.11-case-government-issues","10.11-case-government-issues",null,"https://style-guide.europa.eu/fi/content/-/isg/topic?identifier= 10.11-case-government-issues"]
["https://publications.europa.eu/code/","fi","-4110000.htm","https://publications.europa.eu/code/fi/fi-4110000.htm","11-reference-works","11-reference-works",null,"https://style-guide.europa.eu/fi/content/-/isg/topic?identifier= 11-reference-works"]
["https://publications.europa.eu/code/","fr",-390601,"https://publications.europa.eu/code/fr/fr-390601","9.6-commission-directorates-general-services","9.6-commission-directorates-general-services",null,"https://style-guide.europa.eu/fr/content/-/isg/topic?identifier= 9.6-commission-directorates-general-services"]
["https://publications.europa.eu/code/","fr","-4000000.htm","https://publications.europa.eu/code/fr/fr-4000000.htm","part-four-publications-in-a-specific-language","part-four-publications-in-a-specific-language",null,"https://style-guide.europa.eu/fr/content/-/isg/topic?identifier= part-four-publications-in-a-specific-language"]
["https://publications.europa.eu/code/","fr","-4100000.htm","https://publications.europa.eu/code/fr/fr-4100000.htm","10-formal-text-presentation","10-formal-text-presentation",null,"https://style-guide.europa.eu/fr/content/-/isg/topic?identifier= 10-formal-text-presentation"]
["https://publications.europa.eu/code/","fr","-4100100.htm","https://publications.europa.eu/code/fr/fr-4100100.htm","10.1-punctuation","10.1-punctuation",null,"https://style-guide.europa.eu/fr/content/-/isg/topic?identifier= 10.1-punctuation"]
["https://publications.europa.eu/code/","fr","-4100200.htm","https://publications.europa.eu/code/fr/fr-4100200.htm","10.2-upper-and-lower-case","10.2-upper-and-lower-case",null,"https://style-guide.europa.eu/fr/content/-/isg/topic?identifier= 10.2-upper-and-lower-case"]
["https://publications.europa.eu/code/","fr","-4100201.htm","https://publications.europa.eu/code/fr/fr-4100201.htm","10.2.1-nouns","10.2.1-nouns",null,"https://style-guide.europa.eu/fr/content/-/isg/topic?identifier= 10.2.1-nouns"]
["https://publications.europa.eu/code/","fr","-4100202.htm","https://publications.europa.eu/code/fr/fr-4100202.htm","10.2.2-adjectives","10.2.2-adjectives",null,"https://style-guide.europa.eu/fr/content/-/isg/topic?identifier= 10.2.2-adjectives"]
["https://publications.europa.eu/code/","fr","-4100300.htm","https://publications.europa.eu/code/fr/fr-4100300.htm","10.3-prefixes","10.3-prefixes",null,"https://style-guide.europa.eu/fr/content/-/isg/topic?identifier= 10.3-prefixes"]
["https://publications.europa.eu/code/","fr","-4100400.htm","https://publications.europa.eu/code/fr/fr-4100400.htm","10.4-numbers","10.4-numbers",null,"https://style-guide.europa.eu/fr/content/-/isg/topic?identifier= 10.4-numbers"]
["https://publications.europa.eu/code/","fr","-4100500.htm","https://publications.europa.eu/code/fr/fr-4100500.htm","10.5-abbreviations","10.5-abbreviations",null,"https://style-guide.europa.eu/fr/content/-/isg/topic?identifier= 10.5-abbreviations"]
["https://publications.europa.eu/code/","fr","-4100600.htm","https://publications.europa.eu/code/fr/fr-4100600.htm","10.6-initialisms-and-acronyms","10.6-initialisms-and-acronyms",null,"https://style-guide.europa.eu/fr/content/-/isg/topic?identifier= 10.6-initialisms-and-acronyms"]
["https://publications.europa.eu/code/","fr","-4110000.htm","https://publications.europa.eu/code/fr/fr-4110000.htm","11-reference-works","11-reference-works",null,"https://style-guide.europa.eu/fr/content/-/isg/topic?identifier= 11-reference-works"]
["https://publications.europa.eu/code/","fr","-5010100.htm","https://publications.europa.eu/code/fr/fr-5010100.htm","annex-b-use-of-italics","annex-b-use-of-italics",null,"https://style-guide.europa.eu/fr/content/-/isg/topic?identifier= annex-b-use-of-italics"]
["https://publications.europa.eu/code/","ga","-4000000.htm","https://publications.europa.eu/code/ga/ga-4000000.htm","part-four-publications-in-a-specific-language","part-four-publications-in-a-specific-language",null,"https://style-guide.europa.eu/ga/content/-/isg/topic?identifier= part-four-publications-in-a-specific-language"]
["https://publications.europa.eu/code/","ga","-4100000.htm","https://publications.europa.eu/code/ga/ga-4100000.htm","10-house-rules-text-preparation ","10-house-rules-text-preparation ",null,"https://style-guide.europa.eu/ga/content/-/isg/topic?identifier= 10-house-rules-text-preparation "]
["https://publications.europa.eu/code/","ga","-4100100.htm","https://publications.europa.eu/code/ga/ga-4100100.htm","10.1-punctuation","10.1-punctuation",null,"https://style-guide.europa.eu/ga/content/-/isg/topic?identifier= 10.1-punctuation"]
["https://publications.europa.eu/code/","ga","-4100200.htm","https://publications.europa.eu/code/ga/ga-4100200.htm","10.2-spelling","10.2-spelling",null,"https://style-guide.europa.eu/ga/content/-/isg/topic?identifier= 10.2-spelling"]
["https://publications.europa.eu/code/","ga","-4100300.htm","https://publications.europa.eu/code/ga/ga-4100300.htm","10.3-numbers-date-and-time","10.3-numbers-date-and-time",null,"https://style-guide.europa.eu/ga/content/-/isg/topic?identifier= 10.3-numbers-date-and-time"]
["https://publications.europa.eu/code/","ga","-4100400.htm","https://publications.europa.eu/code/ga/ga-4100400.htm","10.4-upper-and-lower-case","10.4-upper-and-lower-case",null,"https://style-guide.europa.eu/ga/content/-/isg/topic?identifier= 10.4-upper-and-lower-case"]
["https://publications.europa.eu/code/","ga","-4100500.htm","https://publications.europa.eu/code/ga/ga-4100500.htm","10.5-abbreviations-syncopations-acronyms-symbols","10.5-abbreviations-syncopations-acronyms-symbols",null,"https://style-guide.europa.eu/ga/content/-/isg/topic?identifier= 10.5-abbreviations-syncopations-acronyms-symbols"]
["https://publications.europa.eu/code/","ga","-4100600.htm","https://publications.europa.eu/code/ga/ga-4100600.htm","10.6-italics","10.6-italics",null,"https://style-guide.europa.eu/ga/content/-/isg/topic?identifier= 10.6-italics"]
["https://publications.europa.eu/code/","ga","-4100700.htm","https://publications.europa.eu/code/ga/ga-4100700.htm","10.7-guidance-on-referring-to-documents-that-do-not-exist-in-Irish","10.7-guidance-on-referring-to-documents-that-do-not-exist-in-Irish",null,"https://style-guide.europa.eu/ga/content/-/isg/topic?identifier= 10.7-guidance-on-referring-to-documents-that-do-not-exist-in-Irish"]
["https://publications.europa.eu/code/","ga","-4110000.htm","https://publications.europa.eu/code/ga/ga-4110000.htm","11-reference-works","11-reference-works",null,"https://style-guide.europa.eu/ga/content/-/isg/topic?identifier= 11-reference-works"]
["https://publications.europa.eu/code/","hr","-4000000.htm","https://publications.europa.eu/code/hr/hr-4000000.htm","part-four-publications-in-a-specific-language","part-four-publications-in-a-specific-language",null,"https://style-guide.europa.eu/hr/content/-/isg/topic?identifier= part-four-publications-in-a-specific-language"]
["https://publications.europa.eu/code/","hr","-4100000.htm","https://publications.europa.eu/code/hr/hr-4100000.htm","10-house-rules-text-preparation","10-house-rules-text-preparation",null,"https://style-guide.europa.eu/hr/content/-/isg/topic?identifier= 10-house-rules-text-preparation"]
["https://publications.europa.eu/code/","hr","-4100100.htm","https://publications.europa.eu/code/hr/hr-4100100.htm","10.1-punctuation-hard-space-and-non-tonic-long-vowel","10.1-punctuation-hard-space-and-non-tonic-long-vowel",null,"https://style-guide.europa.eu/hr/content/-/isg/topic?identifier= 10.1-punctuation-hard-space-and-non-tonic-long-vowel"]
["https://publications.europa.eu/code/","hr","-4100200.htm","https://publications.europa.eu/code/hr/hr-4100200.htm","10.2-verbs","10.2-verbs",null,"https://style-guide.europa.eu/hr/content/-/isg/topic?identifier= 10.2-verbs"]
["https://publications.europa.eu/code/","hr","-4100300.htm","https://publications.europa.eu/code/hr/hr-4100300.htm","10.3-interferences-of-english-in-croatian-translations ","10.3-interferences-of-english-in-croatian-translations ",null,"https://style-guide.europa.eu/hr/content/-/isg/topic?identifier= 10.3-interferences-of-english-in-croatian-translations "]
["https://publications.europa.eu/code/","hr","-4100400.htm","https://publications.europa.eu/code/hr/hr-4100400.htm","10.4-upper-and-lower-case","10.4-upper-and-lower-case",null,"https://style-guide.europa.eu/hr/content/-/isg/topic?identifier= 10.4-upper-and-lower-case"]
["https://publications.europa.eu/code/","hr","-4100500.htm","https://publications.europa.eu/code/hr/hr-4100500.htm","10.5-figures-dates-time","10.5-figures-dates-time",null,"https://style-guide.europa.eu/hr/content/-/isg/topic?identifier= 10.5-figures-dates-time"]
["https://publications.europa.eu/code/","hr","-4100600.htm","https://publications.europa.eu/code/hr/hr-4100600.htm","10.6-italics","10.6-italics",null,"https://style-guide.europa.eu/hr/content/-/isg/topic?identifier= 10.6-italics"]
["https://publications.europa.eu/code/","hr","-4100700.htm","https://publications.europa.eu/code/hr/hr-4100700.htm","10.7-abbreviations-and-acronyms","10.7-abbreviations-and-acronyms",null,"https://style-guide.europa.eu/hr/content/-/isg/topic?identifier= 10.7-abbreviations-and-acronyms"]
["https://publications.europa.eu/code/","hr","-4100800.htm","https://publications.europa.eu/code/hr/hr-4100800.htm","10.8-miscellaneous","10.8-miscellaneous",null,"https://style-guide.europa.eu/hr/content/-/isg/topic?identifier= 10.8-miscellaneous"]
["https://publications.europa.eu/code/","hr","-4110000.htm","https://publications.europa.eu/code/hr/hr-4110000.htm","11-reference-works","11-reference-works",null,"https://style-guide.europa.eu/hr/content/-/isg/topic?identifier= 11-reference-works"]
["https://publications.europa.eu/code/","hu","-4000000.htm","https://publications.europa.eu/code/hu/hu-4000000.htm","part-four-publications-in-a-specific-language","part-four-publications-in-a-specific-language",null,"https://style-guide.europa.eu/hu/content/-/isg/topic?identifier= part-four-publications-in-a-specific-language"]
["https://publications.europa.eu/code/","hu","-4100000.htm","https://publications.europa.eu/code/hu/hu-4100000.htm","10-spelling-guide","10-spelling-guide",null,"https://style-guide.europa.eu/hu/content/-/isg/topic?identifier= 10-spelling-guide"]
["https://publications.europa.eu/code/","hu","-4100100.htm","https://publications.europa.eu/code/hu/hu-4100100.htm","10.1-punctuation-marks","10.1-punctuation-marks",null,"https://style-guide.europa.eu/hu/content/-/isg/topic?identifier= 10.1-punctuation-marks"]
["https://publications.europa.eu/code/","hu","-4100200.htm","https://publications.europa.eu/code/hu/hu-4100200.htm","10.2-lower-and-upper-case","10.2-lower-and-upper-case",null,"https://style-guide.europa.eu/hu/content/-/isg/topic?identifier= 10.2-lower-and-upper-case"]
["https://publications.europa.eu/code/","hu","-4100300.htm","https://publications.europa.eu/code/hu/hu-4100300.htm","10.3-abbreviations-and-acronyms","10.3-abbreviations-and-acronyms",null,"https://style-guide.europa.eu/hu/content/-/isg/topic?identifier= 10.3-abbreviations-and-acronyms"]
["https://publications.europa.eu/code/","hu","-4100400.htm","https://publications.europa.eu/code/hu/hu-4100400.htm","10.4-foreign-names-and-words","10.4-foreign-names-and-words",null,"https://style-guide.europa.eu/hu/content/-/isg/topic?identifier= 10.4-foreign-names-and-words"]
["https://publications.europa.eu/code/","hu","-4100500.htm","https://publications.europa.eu/code/hu/hu-4100500.htm","10.5-compound-words","10.5-compound-words",null,"https://style-guide.europa.eu/hu/content/-/isg/topic?identifier= 10.5-compound-words"]
["https://publications.europa.eu/code/","hu","-4100600.htm","https://publications.europa.eu/code/hu/hu-4100600.htm","10.6-numbers-and-dates","10.6-numbers-and-dates",null,"https://style-guide.europa.eu/hu/content/-/isg/topic?identifier= 10.6-numbers-and-dates"]
["https://publications.europa.eu/code/","hu","-4100700.htm","https://publications.europa.eu/code/hu/hu-4100700.htm","10.7-miscellaneous","10.7-miscellaneous",null,"https://style-guide.europa.eu/hu/content/-/isg/topic?identifier= 10.7-miscellaneous"]
["https://publications.europa.eu/code/","hu","-4110000.htm","https://publications.europa.eu/code/hu/hu-4110000.htm","11-reference-works","11-reference-works",null,"https://style-guide.europa.eu/hu/content/-/isg/topic?identifier= 11-reference-works"]
["https://publications.europa.eu/code/","it","-4000000.htm","https://publications.europa.eu/code/it/it-4000000.htm","part-four-publications-in-a-specific-language","part-four-publications-in-a-specific-language",null,"https://style-guide.europa.eu/it/content/-/isg/topic?identifier= part-four-publications-in-a-specific-language"]
["https://publications.europa.eu/code/","it","-4100000.htm","https://publications.europa.eu/code/it/it-4100000.htm","10-text-presentation","10-text-presentation",null,"https://style-guide.europa.eu/it/content/-/isg/topic?identifier= 10-text-presentation"]
["https://publications.europa.eu/code/","it","-4100100.htm","https://publications.europa.eu/code/it/it-4100100.htm","10.1-punctuation","10.1-punctuation",null,"https://style-guide.europa.eu/it/content/-/isg/topic?identifier= 10.1-punctuation"]
["https://publications.europa.eu/code/","it","-4100200.htm","https://publications.europa.eu/code/it/it-4100200.htm","10.2-upper-and-lower-case","10.2-upper-and-lower-case",null,"https://style-guide.europa.eu/it/content/-/isg/topic?identifier= 10.2-upper-and-lower-case"]
["https://publications.europa.eu/code/","it","-4100300.htm","https://publications.europa.eu/code/it/it-4100300.htm","10.3-numbers","10.3-numbers",null,"https://style-guide.europa.eu/it/content/-/isg/topic?identifier= 10.3-numbers"]
["https://publications.europa.eu/code/","it","-4100400.htm","https://publications.europa.eu/code/it/it-4100400.htm","10.4-abbreviations","10.4-abbreviations",null,"https://style-guide.europa.eu/it/content/-/isg/topic?identifier= 10.4-abbreviations"]
["https://publications.europa.eu/code/","it","-4100500.htm","https://publications.europa.eu/code/it/it-4100500.htm","10.5-initialisms-and-acronyms","10.5-initialisms-and-acronyms",null,"https://style-guide.europa.eu/it/content/-/isg/topic?identifier= 10.5-initialisms-and-acronyms"]
["https://publications.europa.eu/code/","it","-4110000.htm","https://publications.europa.eu/code/it/it-4110000.htm","11-reference-works","11-reference-works",null,"https://style-guide.europa.eu/it/content/-/isg/topic?identifier= 11-reference-works"]
["https://publications.europa.eu/code/","it","-5010100.htm","https://publications.europa.eu/code/it/it-5010100.htm","annex-b-use-of-italics","annex-b-use-of-italics",null,"https://style-guide.europa.eu/it/content/-/isg/topic?identifier= annex-b-use-of-italics"]
["https://publications.europa.eu/code/","lt","-4000000.htm","https://publications.europa.eu/code/lt/lt-4000000.htm","part-four-publications-in-a-specific-language","part-four-publications-in-a-specific-language",null,"https://style-guide.europa.eu/lt/content/-/isg/topic?identifier= part-four-publications-in-a-specific-language"]
["https://publications.europa.eu/code/","lt","-4100000.htm","https://publications.europa.eu/code/lt/lt-4100000.htm","10-punctuation-and-spelling","10-punctuation-and-spelling",null,"https://style-guide.europa.eu/lt/content/-/isg/topic?identifier= 10-punctuation-and-spelling"]
["https://publications.europa.eu/code/","lt","-4100100.htm","https://publications.europa.eu/code/lt/lt-4100100.htm","10.1-punctuation-marks","10.1-punctuation-marks",null,"https://style-guide.europa.eu/lt/content/-/isg/topic?identifier= 10.1-punctuation-marks"]
["https://publications.europa.eu/code/","lt","-4100102.htm","https://publications.europa.eu/code/lt/lt-4100102.htm","10.1.2-semicolon","10.1.2-semicolon",null,"https://style-guide.europa.eu/lt/content/-/isg/topic?identifier= 10.1.2-semicolon"]
["https://publications.europa.eu/code/","lt","-4100103.htm","https://publications.europa.eu/code/lt/lt-4100103.htm","10.1.3-colon","10.1.3-colon",null,{"$f":"_xlfn.CONCAT(\"https://style-guide.europa.eu/\",B322,\"/content/-/isg/topic?identifier= \",E322)","v":"https://style-guide.europa.eu/lt/content/-/isg/topic?identifier= 10.1.3-colon"}]
["https://publications.europa.eu/code/","lt","-4100104.htm",{"$f":"_xlfn.CONCAT(A323,B323,\"/\",B323,C323)","v":"https://publications.europa.eu/code/lt/lt-4100104.htm"},"10.1.4-n-dash","10.1.4-n-dash",null,"https://style-guide.europa.eu/lt/content/-/isg/topic?identifier= 10.1.4-n-dash"]
["https://publications.europa.eu/code/","lt","-4100105.htm","https://publications.europa.eu/code/lt/lt-4100105.htm","10.1.5-hyphen","10.1.5-hyphen",null,"https://style-guide.europa.eu/lt/content/-/isg/topic?identifier= 10.1.5-hyphen"]
["https://publications.europa.eu/code/","lt","-4100106.htm","https://publications.europa.eu/code/lt/lt-4100106.htm","10.1.6-brackets","10.1.6-brackets",null,"https://style-guide.europa.eu/lt/content/-/isg/topic?identifier= 10.1.6-brackets"]
["https://publications.europa.eu/code/","lt","-4100107.htm","https://publications.europa.eu/code/lt/lt-4100107.htm","10.1.7-quotation-marks","10.1.7-quotation-marks",null,"https://style-guide.europa.eu/lt/content/-/isg/topic?identifier= 10.1.7-quotation-marks"]
["https://publications.europa.eu/code/","lt","-4100108.htm","https://publications.europa.eu/code/lt/lt-4100108.htm","10.1.8-space","10.1.8-space",null,"https://style-guide.europa.eu/lt/content/-/isg/topic?identifier= 10.1.8-space"]
["https://publications.europa.eu/code/","lt","-4100109.htm","https://publications.europa.eu/code/lt/lt-4100109.htm","10.1.9-forward-slash","10.1.9-forward-slash",null,"https://style-guide.europa.eu/lt/content/-/isg/topic?identifier= 10.1.9-forward-slash"]
["https://publications.europa.eu/code/","lt","-4100200.htm","https://publications.europa.eu/code/lt/lt-4100200.htm","10.2-punctuation","10.2-punctuation",null,"https://style-guide.europa.eu/lt/content/-/isg/topic?identifier= 10.2-punctuation"]
["https://publications.europa.eu/code/","lt","-4100202.htm","https://publications.europa.eu/code/lt/lt-4100202.htm","10.2.2-circumstances","10.2.2-circumstances",null,"https://style-guide.europa.eu/lt/content/-/isg/topic?identifier= 10.2.2-circumstances"]
["https://publications.europa.eu/code/","lt","-4100203.htm","https://publications.europa.eu/code/lt/lt-4100203.htm","10.2.3-insertions","10.2.3-insertions",null,"https://style-guide.europa.eu/lt/content/-/isg/topic?identifier= 10.2.3-insertions"]
["https://publications.europa.eu/code/","lt","-4100204.htm","https://publications.europa.eu/code/lt/lt-4100204.htm","10.2.4-comparative-expressions","10.2.4-comparative-expressions",null,"https://style-guide.europa.eu/lt/content/-/isg/topic?identifier= 10.2.4-comparative-expressions"]
["https://publications.europa.eu/code/","lt","-4100205.htm","https://publications.europa.eu/code/lt/lt-4100205.htm","10.2.5-annexes","10.2.5-annexes",null,"https://style-guide.europa.eu/lt/content/-/isg/topic?identifier= 10.2.5-annexes"]
["https://publications.europa.eu/code/","lt","-4100206.htm","https://publications.europa.eu/code/lt/lt-4100206.htm","10.2.6-compound-sentences","10.2.6-compound-sentences",null,"https://style-guide.europa.eu/lt/content/-/isg/topic?identifier= 10.2.6-compound-sentences"]
["https://publications.europa.eu/code/","lt","-4100207.htm","https://publications.europa.eu/code/lt/lt-4100207.htm","10.2.7-lists","10.2.7-lists",null,"https://style-guide.europa.eu/lt/content/-/isg/topic?identifier= 10.2.7-lists"]
["https://publications.europa.eu/code/","lt","-4100300.htm","https://publications.europa.eu/code/lt/lt-4100300.htm","10.3-spelling","10.3-spelling",null,"https://style-guide.europa.eu/lt/content/-/isg/topic?identifier= 10.3-spelling"]
["https://publications.europa.eu/code/","lt","-4100302.htm","https://publications.europa.eu/code/lt/lt-4100302.htm","10.3.2-italics","10.3.2-italics",null,"https://style-guide.europa.eu/lt/content/-/isg/topic?identifier= 10.3.2-italics"]
["https://publications.europa.eu/code/","lt","-4100303.htm","https://publications.europa.eu/code/lt/lt-4100303.htm","10.3.3-units-of-measurement","10.3.3-units-of-measurement",null,"https://style-guide.europa.eu/lt/content/-/isg/topic?identifier= 10.3.3-units-of-measurement"]
["https://publications.europa.eu/code/","lt","-4100304.htm","https://publications.europa.eu/code/lt/lt-4100304.htm","10.3.4-currency-names","10.3.4-currency-names",null,"https://style-guide.europa.eu/lt/content/-/isg/topic?identifier= 10.3.4-currency-names"]
["https://publications.europa.eu/code/","lt","-4100305.htm","https://publications.europa.eu/code/lt/lt-4100305.htm","10.3.5-dates","10.3.5-dates",null,"https://style-guide.europa.eu/lt/content/-/isg/topic?identifier= 10.3.5-dates"]
["https://publications.europa.eu/code/","lt","-4100306.htm","https://publications.europa.eu/code/lt/lt-4100306.htm","10.3.6-time","10.3.6-time",null,"https://style-guide.europa.eu/lt/content/-/isg/topic?identifier= 10.3.6-time"]
["https://publications.europa.eu/code/","lt","-4100307.htm","https://publications.europa.eu/code/lt/lt-4100307.htm","10.3.7-numbers-and-quantity","10.3.7-numbers-and-quantity",null,"https://style-guide.europa.eu/lt/content/-/isg/topic?identifier= 10.3.7-numbers-and-quantity"]
["https://publications.europa.eu/code/","lt","-4100308.htm","https://publications.europa.eu/code/lt/lt-4100308.htm","10.3.8-symbolic-names","10.3.8-symbolic-names",null,"https://style-guide.europa.eu/lt/content/-/isg/topic?identifier= 10.3.8-symbolic-names"]
["https://publications.europa.eu/code/","lt","-4100309.htm","https://publications.europa.eu/code/lt/lt-4100309.htm","10.3.9-abbreviations-and-acronyms","10.3.9-abbreviations-and-acronyms",null,"https://style-guide.europa.eu/lt/content/-/isg/topic?identifier= 10.3.9-abbreviations-and-acronyms"]
["https://publications.europa.eu/code/","lt","-4100310.htm","https://publications.europa.eu/code/lt/lt-4100310.htm","10.3.10-spelling-names-of-persons","10.3.10-spelling-names-of-persons",null,"https://style-guide.europa.eu/lt/content/-/isg/topic?identifier= 10.3.10-spelling-names-of-persons"]
["https://publications.europa.eu/code/","lt","-4110000.htm","https://publications.europa.eu/code/lt/lt-4110000.htm","11-reference-works","11-reference-works",null,"https://style-guide.europa.eu/lt/content/-/isg/topic?identifier= 11-reference-works"]
["https://publications.europa.eu/code/","lv","-4000000.htm","https://publications.europa.eu/code/lv/lv-4000000.htm","part-four-publications-in-a-specific-language","part-four-publications-in-a-specific-language",null,"https://style-guide.europa.eu/lv/content/-/isg/topic?identifier= part-four-publications-in-a-specific-language"]
["https://publications.europa.eu/code/","lv","-4100000.htm","https://publications.europa.eu/code/lv/lv-4100000.htm","10-latvian-text-design-rules","10-latvian-text-design-rules",null,"https://style-guide.europa.eu/lv/content/-/isg/topic?identifier= 10-latvian-text-design-rules"]
["https://publications.europa.eu/code/","lv","-4100100.htm","https://publications.europa.eu/code/lv/lv-4100100.htm","10.1-punctuation","10.1-punctuation",null,"https://style-guide.europa.eu/lv/content/-/isg/topic?identifier= 10.1-punctuation"]
["https://publications.europa.eu/code/","lv","-4100200.htm","https://publications.europa.eu/code/lv/lv-4100200.htm","10.2-choice-of-words-and-word-forms","10.2-choice-of-words-and-word-forms",null,"https://style-guide.europa.eu/lv/content/-/isg/topic?identifier= 10.2-choice-of-words-and-word-forms"]
["https://publications.europa.eu/code/","lv","-4100300.htm","https://publications.europa.eu/code/lv/lv-4100300.htm","10.3-spelling","10.3-spelling",null,"https://style-guide.europa.eu/lv/content/-/isg/topic?identifier= 10.3-spelling"]
["https://publications.europa.eu/code/","lv","-4100400.htm","https://publications.europa.eu/code/lv/lv-4100400.htm","10.4-upper-case","10.4-upper-case",null,"https://style-guide.europa.eu/lv/content/-/isg/topic?identifier= 10.4-upper-case"]
["https://publications.europa.eu/code/","lv","-4100500.htm","https://publications.europa.eu/code/lv/lv-4100500.htm","10.5-numbers-dates-time","10.5-numbers-dates-time",null,"https://style-guide.europa.eu/lv/content/-/isg/topic?identifier= 10.5-numbers-dates-time"]
["https://publications.europa.eu/code/","lv","-4100600.htm","https://publications.europa.eu/code/lv/lv-4100600.htm","10.6-italics","10.6-italics",null,"https://style-guide.europa.eu/lv/content/-/isg/topic?identifier= 10.6-italics"]
["https://publications.europa.eu/code/","lv","-4100700.htm","https://publications.europa.eu/code/lv/lv-4100700.htm","10.7-abbreviations-symbols-acronyms","10.7-abbreviations-symbols-acronyms",null,"https://style-guide.europa.eu/lv/content/-/isg/topic?identifier= 10.7-abbreviations-symbols-acronyms"]
["https://publications.europa.eu/code/","lv","-4100800.htm","https://publications.europa.eu/code/lv/lv-4100800.htm","10.8-miscellaneous","10.8-miscellaneous",null,"https://style-guide.europa.eu/lv/content/-/isg/topic?identifier= 10.8-miscellaneous"]
["https://publications.europa.eu/code/","lv","-4110000.htm","https://publications.europa.eu/code/lv/lv-4110000.htm","11-reference-works","11-reference-works",null,"https://style-guide.europa.eu/lv/content/-/isg/topic?identifier= 11-reference-works"]
["https://publications.europa.eu/code/","mt","-4000000.htm","https://publications.europa.eu/code/mt/mt-4000000.htm","part-four-publications-in-a-specific-language","part-four-publications-in-a-specific-language",null,"https://style-guide.europa.eu/mt/content/-/isg/topic?identifier= part-four-publications-in-a-specific-language"]
["https://publications.europa.eu/code/","mt","-4100000.htm","https://publications.europa.eu/code/mt/mt-4100000.htm","10-house-rules-text-preparation","10-house-rules-text-preparation",null,"https://style-guide.europa.eu/mt/content/-/isg/topic?identifier= 10-house-rules-text-preparation"]
["https://publications.europa.eu/code/","mt","-4100100.htm","https://publications.europa.eu/code/mt/mt-4100100.htm","10.1-punctuation","10.1-punctuation",null,"https://style-guide.europa.eu/mt/content/-/isg/topic?identifier= 10.1-punctuation"]
["https://publications.europa.eu/code/","mt","-4100200.htm","https://publications.europa.eu/code/mt/mt-4100200.htm","10.2-spelling-help","10.2-spelling-help",null,"https://style-guide.europa.eu/mt/content/-/isg/topic?identifier= 10.2-spelling-help"]
["https://publications.europa.eu/code/","mt","-4100300.htm","https://publications.europa.eu/code/mt/mt-4100300.htm","10.3-upper-and-lower-case","10.3-upper-and-lower-case",null,"https://style-guide.europa.eu/mt/content/-/isg/topic?identifier= 10.3-upper-and-lower-case"]
["https://publications.europa.eu/code/","mt","-4100400.htm","https://publications.europa.eu/code/mt/mt-4100400.htm","10.4-numbers-dates-and-time","10.4-numbers-dates-and-time",null,"https://style-guide.europa.eu/mt/content/-/isg/topic?identifier= 10.4-numbers-dates-and-time"]
["https://publications.europa.eu/code/","mt","-4100500.htm","https://publications.europa.eu/code/mt/mt-4100500.htm","10.5-units-of-measurement","10.5-units-of-measurement",null,"https://style-guide.europa.eu/mt/content/-/isg/topic?identifier= 10.5-units-of-measurement"]
["https://publications.europa.eu/code/","mt","-4100600.htm","https://publications.europa.eu/code/mt/mt-4100600.htm","10.6-italics","10.6-italics",null,"https://style-guide.europa.eu/mt/content/-/isg/topic?identifier= 10.6-italics"]
["https://publications.europa.eu/code/","mt","-4100700.htm","https://publications.europa.eu/code/mt/mt-4100700.htm","10.7-abbreviations-and-acronyms","10.7-abbreviations-and-acronyms",null,"https://style-guide.europa.eu/mt/content/-/isg/topic?identifier= 10.7-abbreviations-and-acronyms"]
["https://publications.europa.eu/code/","mt","-4100800.htm","https://publications.europa.eu/code/mt/mt-4100800.htm","10.8-miscellaneous","10.8-miscellaneous",null,"https://style-guide.europa.eu/mt/content/-/isg/topic?identifier= 10.8-miscellaneous"]
["https://publications.europa.eu/code/","mt","-4110000.htm","https://publications.europa.eu/code/mt/mt-4110000.htm","11-reference-works","11-reference-works",null,"https://style-guide.europa.eu/mt/content/-/isg/topic?identifier= 11-reference-works"]
["https://publications.europa.eu/code/","mt","-5010100.htm","https://publications.europa.eu/code/mt/mt-5010100.htm","annex-b-combined-or-separated-words","annex-b-combined-or-separated-words",null,"https://style-guide.europa.eu/mt/content/-/isg/topic?identifier= annex-b-combined-or-separated-words"]
["https://publications.europa.eu/code/","nl","-4000000.htm","https://publications.europa.eu/code/nl/nl-4000000.htm","part-four-publications-in-a-specific-language","part-four-publications-in-a-specific-language",null,"https://style-guide.europa.eu/nl/content/-/isg/topic?identifier= part-four-publications-in-a-specific-language"]
["https://publications.europa.eu/code/","nl","-4100000.htm","https://publications.europa.eu/code/nl/nl-4100000.htm","10-text","10-text",null,"https://style-guide.europa.eu/nl/content/-/isg/topic?identifier= 10-text"]
["https://publications.europa.eu/code/","nl","-4100100.htm","https://publications.europa.eu/code/nl/nl-4100100.htm","10.1-punctuation","10.1-punctuation",null,"https://style-guide.europa.eu/nl/content/-/isg/topic?identifier= 10.1-punctuation"]
["https://publications.europa.eu/code/","nl","-4100200.htm","https://publications.europa.eu/code/nl/nl-4100200.htm","10.2-upper-case","10.2-upper-case",null,"https://style-guide.europa.eu/nl/content/-/isg/topic?identifier= 10.2-upper-case"]
["https://publications.europa.eu/code/","nl","-4100300.htm","https://publications.europa.eu/code/nl/nl-4100300.htm","10.3-two-words-one-word-or-hyphen","10.3-two-words-one-word-or-hyphen",null,"https://style-guide.europa.eu/nl/content/-/isg/topic?identifier= 10.3-two-words-one-word-or-hyphen"]
["https://publications.europa.eu/code/","nl","-4100400.htm","https://publications.europa.eu/code/nl/nl-4100400.htm","10.4-abbreviations","10.4-abbreviations",null,"https://style-guide.europa.eu/nl/content/-/isg/topic?identifier= 10.4-abbreviations"]
["https://publications.europa.eu/code/","nl","-4100500.htm","https://publications.europa.eu/code/nl/nl-4100500.htm","10.5-numbers","10.5-numbers",null,"https://style-guide.europa.eu/nl/content/-/isg/topic?identifier= 10.5-numbers"]
["https://publications.europa.eu/code/","nl","-4100600.htm","https://publications.europa.eu/code/nl/nl-4100600.htm","10.6-miscellaneous","10.6-miscellaneous",null,"https://style-guide.europa.eu/nl/content/-/isg/topic?identifier= 10.6-miscellaneous"]
["https://publications.europa.eu/code/","nl","-4110000.htm","https://publications.europa.eu/code/nl/nl-4110000.htm","11-reference-works","11-reference-works",null,"https://style-guide.europa.eu/nl/content/-/isg/topic?identifier= 11-reference-works"]
["https://publications.europa.eu/code/","nl","-5010100.htm","https://publications.europa.eu/code/nl/nl-5010100.htm","annex-b1-latin-numbers","annex-b1-latin-numbers",null,"https://style-guide.europa.eu/nl/content/-/isg/topic?identifier= annex-b1-latin-numbers"]
["https://publications.europa.eu/code/","nl","-5010200.htm","https://publications.europa.eu/code/nl/nl-5010200.htm","annex-b2-miscellaneous","annex-b2-miscellaneous",null,"https://style-guide.europa.eu/nl/content/-/isg/topic?identifier= annex-b2-miscellaneous"]
["https://publications.europa.eu/code/","nl","-5010300.htm","https://publications.europa.eu/code/nl/nl-5010300.htm","annex-b3-corrigenda","annex-b3-corrigenda",null,"https://style-guide.europa.eu/nl/content/-/isg/topic?identifier= annex-b3-corrigenda"]
["https://publications.europa.eu/code/","pl","-4000000.htm","https://publications.europa.eu/code/pl/pl-4000000.htm","part-four-publications-in-a-specific-language","part-four-publications-in-a-specific-language",null,"https://style-guide.europa.eu/pl/content/-/isg/topic?identifier= part-four-publications-in-a-specific-language"]
["https://publications.europa.eu/code/","pl","-4100000.htm","https://publications.europa.eu/code/pl/pl-4100000.htm","10-polish-text-rules","10-polish-text-rules",null,"https://style-guide.europa.eu/pl/content/-/isg/topic?identifier= 10-polish-text-rules"]
["https://publications.europa.eu/code/","pl","-4100100.htm","https://publications.europa.eu/code/pl/pl-4100100.htm","10.1-punctuation","10.1-punctuation",null,"https://style-guide.europa.eu/pl/content/-/isg/topic?identifier= 10.1-punctuation"]
["https://publications.europa.eu/code/","pl","-4100102.htm","https://publications.europa.eu/code/pl/pl-4100102.htm","10.1.2-full-stop","10.1.2-full-stop",null,"https://style-guide.europa.eu/pl/content/-/isg/topic?identifier= 10.1.2-full-stop"]
["https://publications.europa.eu/code/","pl","-4100103.htm","https://publications.europa.eu/code/pl/pl-4100103.htm","10.1.3-colon","10.1.3-colon",null,{"$f":"_xlfn.CONCAT(\"https://style-guide.europa.eu/\",B386,\"/content/-/isg/topic?identifier= \",E386)","v":"https://style-guide.europa.eu/pl/content/-/isg/topic?identifier= 10.1.3-colon"}]
["https://publications.europa.eu/code/","pl","-4100104.htm",{"$f":"_xlfn.CONCAT(A387,B387,\"/\",B387,C387)","v":"https://publications.europa.eu/code/pl/pl-4100104.htm"},"10.1.4-semicolon","10.1.4-semicolon",null,"https://style-guide.europa.eu/pl/content/-/isg/topic?identifier= 10.1.4-semicolon"]
["https://publications.europa.eu/code/","pl","-4100105.htm","https://publications.europa.eu/code/pl/pl-4100105.htm","10.1.5-quotation-marks","10.1.5-quotation-marks",null,"https://style-guide.europa.eu/pl/content/-/isg/topic?identifier= 10.1.5-quotation-marks"]
["https://publications.europa.eu/code/","pl","-4100106.htm","https://publications.europa.eu/code/pl/pl-4100106.htm","10.1.6-em-dash-en-dash-hyphen","10.1.6-em-dash-en-dash-hyphen",null,"https://style-guide.europa.eu/pl/content/-/isg/topic?identifier= 10.1.6-em-dash-en-dash-hyphen"]
["https://publications.europa.eu/code/","pl","-4100107.htm","https://publications.europa.eu/code/pl/pl-4100107.htm","10.1.7-ellipsis","10.1.7-ellipsis",null,"https://style-guide.europa.eu/pl/content/-/isg/topic?identifier= 10.1.7-ellipsis"]
["https://publications.europa.eu/code/","pl","-4100108.htm","https://publications.europa.eu/code/pl/pl-4100108.htm","10.1.8-forward-slash","10.1.8-forward-slash",null,"https://style-guide.europa.eu/pl/content/-/isg/topic?identifier= 10.1.8-forward-slash"]
["https://publications.europa.eu/code/","pl","-4100109.htm","https://publications.europa.eu/code/pl/pl-4100109.htm","10.1.9-percentage-sign","10.1.9-percentage-sign",null,"https://style-guide.europa.eu/pl/content/-/isg/topic?identifier= 10.1.9-percentage-sign"]
["https://publications.europa.eu/code/","pl","-4100200.htm","https://publications.europa.eu/code/pl/pl-4100200.htm","10.2-upper-and-lower-case","10.2-upper-and-lower-case",null,"https://style-guide.europa.eu/pl/content/-/isg/topic?identifier= 10.2-upper-and-lower-case"]
["https://publications.europa.eu/code/","pl","-4100300.htm","https://publications.europa.eu/code/pl/pl-4100300.htm","10.3-abbreviations-and-acronyms","10.3-abbreviations-and-acronyms",null,"https://style-guide.europa.eu/pl/content/-/isg/topic?identifier= 10.3-abbreviations-and-acronyms"]
["https://publications.europa.eu/code/","pl","-4100400.htm","https://publications.europa.eu/code/pl/pl-4100400.htm","10.4-compound-words-with-or-without-hyphen","10.4-compound-words-with-or-without-hyphen",null,"https://style-guide.europa.eu/pl/content/-/isg/topic?identifier= 10.4-compound-words-with-or-without-hyphen"]
["https://publications.europa.eu/code/","pl","-4100500.htm","https://publications.europa.eu/code/pl/pl-4100500.htm","10.5-together-or-separately","10.5-together-or-separately",null,"https://style-guide.europa.eu/pl/content/-/isg/topic?identifier= 10.5-together-or-separately"]
["https://publications.europa.eu/code/","pl","-4100600.htm","https://publications.europa.eu/code/pl/pl-4100600.htm","10.6-adding-plural-form","10.6-adding-plural-form",null,"https://style-guide.europa.eu/pl/content/-/isg/topic?identifier= 10.6-adding-plural-form"]
["https://publications.europa.eu/code/","pl","-4100700.htm","https://publications.europa.eu/code/pl/pl-4100700.htm","10.7-adverbial-participles","10.7-adverbial-participles",null,"https://style-guide.europa.eu/pl/content/-/isg/topic?identifier= 10.7-adverbial-participles"]
["https://publications.europa.eu/code/","pl","-4100800.htm","https://publications.europa.eu/code/pl/pl-4100800.htm","10.8-numerals","10.8-numerals",null,"https://style-guide.europa.eu/pl/content/-/isg/topic?identifier= 10.8-numerals"]
["https://publications.europa.eu/code/","pl","-4100900.htm","https://publications.europa.eu/code/pl/pl-4100900.htm","10.9-prepositions","10.9-prepositions",null,"https://style-guide.europa.eu/pl/content/-/isg/topic?identifier= 10.9-prepositions"]
["https://publications.europa.eu/code/","pl","-4101000.htm","https://publications.europa.eu/code/pl/pl-4101000.htm","10.10-possessives ","10.10-possessives ",null,"https://style-guide.europa.eu/pl/content/-/isg/topic?identifier= 10.10-possessives "]
["https://publications.europa.eu/code/","pl","-4101100.htm","https://publications.europa.eu/code/pl/pl-4101100.htm","10.11-government-and-syntax-abbreviations","10.11-government-and-syntax-abbreviations",null,"https://style-guide.europa.eu/pl/content/-/isg/topic?identifier= 10.11-government-and-syntax-abbreviations"]
["https://publications.europa.eu/code/","pl","-4101200.htm","https://publications.europa.eu/code/pl/pl-4101200.htm","10.12-inflection","10.12-inflection",null,"https://style-guide.europa.eu/pl/content/-/isg/topic?identifier= 10.12-inflection"]
["https://publications.europa.eu/code/","pl","-4101300.htm","https://publications.europa.eu/code/pl/pl-4101300.htm","10.13-other-problematic-expressions","10.13-other-problematic-expressions",null,"https://style-guide.europa.eu/pl/content/-/isg/topic?identifier= 10.13-other-problematic-expressions"]
["https://publications.europa.eu/code/","pl","-4110000.htm","https://publications.europa.eu/code/pl/pl-4110000.htm","11-reference-works","11-reference-works",null,"https://style-guide.europa.eu/pl/content/-/isg/topic?identifier= 11-reference-works"]
["https://publications.europa.eu/code/","pt","-4000000.htm","https://publications.europa.eu/code/pt/pt-4000000.htm","part-four-publications-in-a-specific-language","part-four-publications-in-a-specific-language",null,"https://style-guide.europa.eu/pt/content/-/isg/topic?identifier= part-four-publications-in-a-specific-language"]
["https://publications.europa.eu/code/","pt","-4100000.htm","https://publications.europa.eu/code/pt/pt-4100000.htm","10-formal-text-presentation","10-formal-text-presentation",null,"https://style-guide.europa.eu/pt/content/-/isg/topic?identifier= 10-formal-text-presentation"]
["https://publications.europa.eu/code/","pt","-4100100.htm","https://publications.europa.eu/code/pt/pt-4100100.htm","10.1-graphic-accentuation","10.1-graphic-accentuation",null,"https://style-guide.europa.eu/pt/content/-/isg/topic?identifier= 10.1-graphic-accentuation"]
["https://publications.europa.eu/code/","pt","-4100200.htm","https://publications.europa.eu/code/pt/pt-4100200.htm","10.2-syllabic-division","10.2-syllabic-division",null,"https://style-guide.europa.eu/pt/content/-/isg/topic?identifier= 10.2-syllabic-division"]
["https://publications.europa.eu/code/","pt","-4100300.htm","https://publications.europa.eu/code/pt/pt-4100300.htm","10.3-nouns-and-adjectives","10.3-nouns-and-adjectives",null,"https://style-guide.europa.eu/pt/content/-/isg/topic?identifier= 10.3-nouns-and-adjectives"]
["https://publications.europa.eu/code/","pt","-4100302.htm","https://publications.europa.eu/code/pt/pt-4100302.htm","10.3.2-adjectives","10.3.2-adjectives",null,"https://style-guide.europa.eu/pt/content/-/isg/topic?identifier= 10.3.2-adjectives"]
["https://publications.europa.eu/code/","pt","-4100303.htm","https://publications.europa.eu/code/pt/pt-4100303.htm","10.3.3-feminine-of-nouns-and-adjectives","10.3.3-feminine-of-nouns-and-adjectives",null,"https://style-guide.europa.eu/pt/content/-/isg/topic?identifier= 10.3.3-feminine-of-nouns-and-adjectives"]
["https://publications.europa.eu/code/","pt","-4100304.htm","https://publications.europa.eu/code/pt/pt-4100304.htm","10.3.4-plural-of-names","10.3.4-plural-of-names",null,"https://style-guide.europa.eu/pt/content/-/isg/topic?identifier= 10.3.4-plural-of-names"]
["https://publications.europa.eu/code/","pt","-4100305.htm","https://publications.europa.eu/code/pt/pt-4100305.htm","10.3.5-collective-nouns","10.3.5-collective-nouns",null,"https://style-guide.europa.eu/pt/content/-/isg/topic?identifier= 10.3.5-collective-nouns"]
["https://publications.europa.eu/code/","pt","-4100400.htm","https://publications.europa.eu/code/pt/pt-4100400.htm","10.4-punctuation","10.4-punctuation",null,"https://style-guide.europa.eu/pt/content/-/isg/topic?identifier= 10.4-punctuation"]
["https://publications.europa.eu/code/","pt","-4100402.htm","https://publications.europa.eu/code/pt/pt-4100402.htm","10.4.2-comma","10.4.2-comma",null,"https://style-guide.europa.eu/pt/content/-/isg/topic?identifier= 10.4.2-comma"]
["https://publications.europa.eu/code/","pt","-4100403.htm","https://publications.europa.eu/code/pt/pt-4100403.htm","10.4.3-semicolon","10.4.3-semicolon",null,"https://style-guide.europa.eu/pt/content/-/isg/topic?identifier= 10.4.3-semicolon"]
["https://publications.europa.eu/code/","pt","-4100404.htm","https://publications.europa.eu/code/pt/pt-4100404.htm","10.4.4-colon","10.4.4-colon",null,"https://style-guide.europa.eu/pt/content/-/isg/topic?identifier= 10.4.4-colon"]
["https://publications.europa.eu/code/","pt","-4100405.htm","https://publications.europa.eu/code/pt/pt-4100405.htm","10.4.5-question-mark","10.4.5-question-mark",null,"https://style-guide.europa.eu/pt/content/-/isg/topic?identifier= 10.4.5-question-mark"]
["https://publications.europa.eu/code/","pt","-4100406.htm","https://publications.europa.eu/code/pt/pt-4100406.htm","10.4.6-exclamation-mark","10.4.6-exclamation-mark",null,"https://style-guide.europa.eu/pt/content/-/isg/topic?identifier= 10.4.6-exclamation-mark"]
["https://publications.europa.eu/code/","pt","-4100407.htm","https://publications.europa.eu/code/pt/pt-4100407.htm","10.4.7-ellipsis","10.4.7-ellipsis",null,"https://style-guide.europa.eu/pt/content/-/isg/topic?identifier= 10.4.7-ellipsis"]
["https://publications.europa.eu/code/","pt","-4100408.htm","https://publications.europa.eu/code/pt/pt-4100408.htm","10.4.8-em-dash","10.4.8-em-dash",null,"https://style-guide.europa.eu/pt/content/-/isg/topic?identifier= 10.4.8-em-dash"]
["https://publications.europa.eu/code/","pt","-4100409.htm","https://publications.europa.eu/code/pt/pt-4100409.htm","10.4.9-brackets","10.4.9-brackets",null,"https://style-guide.europa.eu/pt/content/-/isg/topic?identifier= 10.4.9-brackets"]
["https://publications.europa.eu/code/","pt","-4100410.htm","https://publications.europa.eu/code/pt/pt-4100410.htm","10.4.10-quotation-marks","10.4.10-quotation-marks",null,"https://style-guide.europa.eu/pt/content/-/isg/topic?identifier= 10.4.10-quotation-marks"]
["https://publications.europa.eu/code/","pt","-4100411.htm","https://publications.europa.eu/code/pt/pt-4100411.htm","10.4.11-forward-slash","10.4.11-forward-slash",null,"https://style-guide.europa.eu/pt/content/-/isg/topic?identifier= 10.4.11-forward-slash"]
["https://publications.europa.eu/code/","pt","-4100412.htm","https://publications.europa.eu/code/pt/pt-4100412.htm","10.4.12-hyphen","10.4.12-hyphen",null,"https://style-guide.europa.eu/pt/content/-/isg/topic?identifier= 10.4.12-hyphen"]
["https://publications.europa.eu/code/","pt","-4100500.htm","https://publications.europa.eu/code/pt/pt-4100500.htm","10.5-prefixes","10.5-prefixes",null,"https://style-guide.europa.eu/pt/content/-/isg/topic?identifier= 10.5-prefixes"]
["https://publications.europa.eu/code/","pt","-4100502.htm","https://publications.europa.eu/code/pt/pt-4100502.htm","10.5.2-practical-guide-hyphen-use","10.5.2-practical-guide-hyphen-use",null,"https://style-guide.europa.eu/pt/content/-/isg/topic?identifier= 10.5.2-practical-guide-hyphen-use"]
["https://publications.europa.eu/code/","pt","-4100600.htm","https://publications.europa.eu/code/pt/pt-4100600.htm","10.6-prepositions","10.6-prepositions",null,"https://style-guide.europa.eu/pt/content/-/isg/topic?identifier= 10.6-prepositions"]
["https://publications.europa.eu/code/","pt","-4100602.htm","https://publications.europa.eu/code/pt/pt-4100602.htm","10.6.2-preposition-in-sentence","10.6.2-preposition-in-sentence",null,"https://style-guide.europa.eu/pt/content/-/isg/topic?identifier= 10.6.2-preposition-in-sentence"]
["https://publications.europa.eu/code/","pt","-4100700.htm","https://publications.europa.eu/code/pt/pt-4100700.htm","10.7-upper-and-lower-case","10.7-upper-and-lower-case",null,"https://style-guide.europa.eu/pt/content/-/isg/topic?identifier= 10.7-upper-and-lower-case"]
["https://publications.europa.eu/code/","pt","-4100702.htm","https://publications.europa.eu/code/pt/pt-4100702.htm","10.7.2-lower-case","10.7.2-lower-case",null,"https://style-guide.europa.eu/pt/content/-/isg/topic?identifier= 10.7.2-lower-case"]
["https://publications.europa.eu/code/","pt","-4100800.htm","https://publications.europa.eu/code/pt/pt-4100800.htm","10.8-language-peculiarities","10.8-language-peculiarities",null,"https://style-guide.europa.eu/pt/content/-/isg/topic?identifier= 10.8-language-peculiarities"]
["https://publications.europa.eu/code/","pt","-4100900.htm","https://publications.europa.eu/code/pt/pt-4100900.htm","10.9-numbers","10.9-numbers",null,"https://style-guide.europa.eu/pt/content/-/isg/topic?identifier= 10.9-numbers"]
["https://publications.europa.eu/code/","pt","-4100901.htm","https://publications.europa.eu/code/pt/pt-4100901.htm","10.9.1-use-of-arabic-numerals","10.9.1-use-of-arabic-numerals",null,"https://style-guide.europa.eu/pt/content/-/isg/topic?identifier= 10.9.1-use-of-arabic-numerals"]
["https://publications.europa.eu/code/","pt","-4100902.htm","https://publications.europa.eu/code/pt/pt-4100902.htm","10.9.2-use-of-roman-numerals","10.9.2-use-of-roman-numerals",null,"https://style-guide.europa.eu/pt/content/-/isg/topic?identifier= 10.9.2-use-of-roman-numerals"]
["https://publications.europa.eu/code/","pt","-4101000.htm","https://publications.europa.eu/code/pt/pt-4101000.htm","10.10-abbreviations","10.10-abbreviations",null,"https://style-guide.europa.eu/pt/content/-/isg/topic?identifier= 10.10-abbreviations"]
["https://publications.europa.eu/code/","pt","-4101100.htm","https://publications.europa.eu/code/pt/pt-4101100.htm","10.11-initialisms-and-acronyms","10.11-initialisms-and-acronyms",null,"https://style-guide.europa.eu/pt/content/-/isg/topic?identifier= 10.11-initialisms-and-acronyms"]
["https://publications.europa.eu/code/","pt","-4110000.htm","https://publications.europa.eu/code/pt/pt-4110000.htm","11-reference-works","11-reference-works",null,"https://style-guide.europa.eu/pt/content/-/isg/topic?identifier= 11-reference-works"]
["https://publications.europa.eu/code/","pt","-5010100.htm","https://publications.europa.eu/code/pt/pt-5010100.htm","annex-b-use-of-italics","annex-b-use-of-italics",null,"https://style-guide.europa.eu/pt/content/-/isg/topic?identifier= annex-b-use-of-italics"]
["https://publications.europa.eu/code/","ro","-4000000.htm","https://publications.europa.eu/code/ro/ro-4000000.htm","part-four-publications-in-a-specific-language","part-four-publications-in-a-specific-language",null,"https://style-guide.europa.eu/ro/content/-/isg/topic?identifier= part-four-publications-in-a-specific-language"]
["https://publications.europa.eu/code/","ro","-4100000.htm","https://publications.europa.eu/code/ro/ro-4100000.htm","10-formal-text-presentation","10-formal-text-presentation",null,"https://style-guide.europa.eu/ro/content/-/isg/topic?identifier= 10-formal-text-presentation"]
["https://publications.europa.eu/code/","ro","-4100100.htm","https://publications.europa.eu/code/ro/ro-4100100.htm","10.1-punctuation","10.1-punctuation",null,"https://style-guide.europa.eu/ro/content/-/isg/topic?identifier= 10.1-punctuation"]
["https://publications.europa.eu/code/","ro","-4100102.htm","https://publications.europa.eu/code/ro/ro-4100102.htm","10.1.2-comma","10.1.2-comma",null,"https://style-guide.europa.eu/ro/content/-/isg/topic?identifier= 10.1.2-comma"]
["https://publications.europa.eu/code/","ro","-4100103.htm","https://publications.europa.eu/code/ro/ro-4100103.htm","10.1.3-semicolon","10.1.3-semicolon",null,"https://style-guide.europa.eu/ro/content/-/isg/topic?identifier= 10.1.3-semicolon"]
["https://publications.europa.eu/code/","ro","-4100104.htm","https://publications.europa.eu/code/ro/ro-4100104.htm","10.1.4-colon","10.1.4-colon",null,"https://style-guide.europa.eu/ro/content/-/isg/topic?identifier= 10.1.4-colon"]
["https://publications.europa.eu/code/","ro","-4100105.htm","https://publications.europa.eu/code/ro/ro-4100105.htm","10.1.5-round-brackets","10.1.5-round-brackets",null,"https://style-guide.europa.eu/ro/content/-/isg/topic?identifier= 10.1.5-round-brackets"]
["https://publications.europa.eu/code/","ro","-4100106.htm","https://publications.europa.eu/code/ro/ro-4100106.htm","10.1.6-square-brackets","10.1.6-square-brackets",null,"https://style-guide.europa.eu/ro/content/-/isg/topic?identifier= 10.1.6-square-brackets"]
["https://publications.europa.eu/code/","ro","-4100107.htm","https://publications.europa.eu/code/ro/ro-4100107.htm","10.1.7-quotation-marks","10.1.7-quotation-marks",null,"https://style-guide.europa.eu/ro/content/-/isg/topic?identifier= 10.1.7-quotation-marks"]
["https://publications.europa.eu/code/","ro","-4100108.htm","https://publications.europa.eu/code/ro/ro-4100108.htm","10.1.8-en-dash","10.1.8-en-dash",null,{"$f":"_xlfn.CONCAT(\"https://style-guide.europa.eu/\",B450,\"/content/-/isg/topic?identifier= \",E450)","v":"https://style-guide.europa.eu/ro/content/-/isg/topic?identifier= 10.1.8-en-dash"}]
["https://publications.europa.eu/code/","ro","-4100109.htm",{"$f":"_xlfn.CONCAT(A451,B451,\"/\",B451,C451)","v":"https://publications.europa.eu/code/ro/ro-4100109.htm"},"10.1.9-ellipsis","10.1.9-ellipsis",null,"https://style-guide.europa.eu/ro/content/-/isg/topic?identifier= 10.1.9-ellipsis"]
["https://publications.europa.eu/code/","ro","-4100110.htm","https://publications.europa.eu/code/ro/ro-4100110.htm","10.1.10-hyphen","10.1.10-hyphen",null,"https://style-guide.europa.eu/ro/content/-/isg/topic?identifier= 10.1.10-hyphen"]
["https://publications.europa.eu/code/","ro","-4100111.htm","https://publications.europa.eu/code/ro/ro-4100111.htm","10.1.11-forward-slash","10.1.11-forward-slash",null,"https://style-guide.europa.eu/ro/content/-/isg/topic?identifier= 10.1.11-forward-slash"]
["https://publications.europa.eu/code/","ro","-4100112.htm","https://publications.europa.eu/code/ro/ro-4100112.htm","10.1.12-apostrophe","10.1.12-apostrophe",null,"https://style-guide.europa.eu/ro/content/-/isg/topic?identifier= 10.1.12-apostrophe"]
["https://publications.europa.eu/code/","ro","-4100200.htm","https://publications.europa.eu/code/ro/ro-4100200.htm","10.2-upper-and-lower-case","10.2-upper-and-lower-case",null,"https://style-guide.europa.eu/ro/content/-/isg/topic?identifier= 10.2-upper-and-lower-case"]
["https://publications.europa.eu/code/","ro","-4100202.htm","https://publications.europa.eu/code/ro/ro-4100202.htm","10.2.2-use-of-lower-case","10.2.2-use-of-lower-case",null,"https://style-guide.europa.eu/ro/content/-/isg/topic?identifier= 10.2.2-use-of-lower-case"]
["https://publications.europa.eu/code/","ro","-4100203.htm","https://publications.europa.eu/code/ro/ro-4100203.htm","10.2.3-acronyms","10.2.3-acronyms",null,"https://style-guide.europa.eu/ro/content/-/isg/topic?identifier= 10.2.3-acronyms"]
["https://publications.europa.eu/code/","ro","-4100300.htm","https://publications.europa.eu/code/ro/ro-4100300.htm","10.3-use-of-derivatives-and-compounds","10.3-use-of-derivatives-and-compounds",null,"https://style-guide.europa.eu/ro/content/-/isg/topic?identifier= 10.3-use-of-derivatives-and-compounds"]
["https://publications.europa.eu/code/","ro","-4100400.htm","https://publications.europa.eu/code/ro/ro-4100400.htm","10.4-numerals","10.4-numerals",null,"https://style-guide.europa.eu/ro/content/-/isg/topic?identifier= 10.4-numerals"]
["https://publications.europa.eu/code/","ro","-4100500.htm","https://publications.europa.eu/code/ro/ro-4100500.htm","10.5-italics","10.5-italics",null,"https://style-guide.europa.eu/ro/content/-/isg/topic?identifier= 10.5-italics"]
["https://publications.europa.eu/code/","ro","-4100600.htm","https://publications.europa.eu/code/ro/ro-4100600.htm","10.6-morphology-and-syntax","10.6-morphology-and-syntax",null,"https://style-guide.europa.eu/ro/content/-/isg/topic?identifier= 10.6-morphology-and-syntax"]
["https://publications.europa.eu/code/","ro","-4110000.htm","https://publications.europa.eu/code/ro/ro-4110000.htm","11-reference-works","11-reference-works",null,"https://style-guide.europa.eu/ro/content/-/isg/topic?identifier= 11-reference-works"]
["https://publications.europa.eu/code/","ro","-5010100.htm","https://publications.europa.eu/code/ro/ro-5010100.htm","annex-b1-standard-wording-in-eu-acts","annex-b1-standard-wording-in-eu-acts",null,"https://style-guide.europa.eu/ro/content/-/isg/topic?identifier= annex-b1-standard-wording-in-eu-acts"]
["https://publications.europa.eu/code/","ro","-5010200.htm","https://publications.europa.eu/code/ro/ro-5010200.htm","annex-b2-examples-of-corrigenda","annex-b2-examples-of-corrigenda",null,"https://style-guide.europa.eu/ro/content/-/isg/topic?identifier= annex-b2-examples-of-corrigenda"]
["https://publications.europa.eu/code/","ro","-5010300.htm","https://publications.europa.eu/code/ro/ro-5010300.htm","annex-b3-referral-to-cjeu-cases","annex-b3-referral-to-cjeu-cases",null,"https://style-guide.europa.eu/ro/content/-/isg/topic?identifier= annex-b3-referral-to-cjeu-cases"]
["https://publications.europa.eu/code/","ro","-5010400.htm","https://publications.europa.eu/code/ro/ro-5010400.htm","annex-b4-useful-examples","annex-b4-useful-examples",null,"https://style-guide.europa.eu/ro/content/-/isg/topic?identifier= annex-b4-useful-examples"]
["https://publications.europa.eu/code/","sk","-4000000.htm","https://publications.europa.eu/code/sk/sk-4000000.htm","part-four-publications-in-a-specific-language","part-four-publications-in-a-specific-language",null,"https://style-guide.europa.eu/sk/content/-/isg/topic?identifier= part-four-publications-in-a-specific-language"]
["https://publications.europa.eu/code/","sk","-4100000.htm","https://publications.europa.eu/code/sk/sk-4100000.htm","10-editing-documents-slovak-spelling-rules","10-editing-documents-slovak-spelling-rules",null,"https://style-guide.europa.eu/sk/content/-/isg/topic?identifier= 10-editing-documents-slovak-spelling-rules"]
["https://publications.europa.eu/code/","sk","-4100100.htm","https://publications.europa.eu/code/sk/sk-4100100.htm","10.1-punctuation-and-special-characters","10.1-punctuation-and-special-characters",null,"https://style-guide.europa.eu/sk/content/-/isg/topic?identifier= 10.1-punctuation-and-special-characters"]
["https://publications.europa.eu/code/","sk","-4100102.htm","https://publications.europa.eu/code/sk/sk-4100102.htm","10.1.2-semicolon","10.1.2-semicolon",null,"https://style-guide.europa.eu/sk/content/-/isg/topic?identifier= 10.1.2-semicolon"]
["https://publications.europa.eu/code/","sk","-4100103.htm","https://publications.europa.eu/code/sk/sk-4100103.htm","10.1.3-colon","10.1.3-colon",null,"https://style-guide.europa.eu/sk/content/-/isg/topic?identifier= 10.1.3-colon"]
["https://publications.europa.eu/code/","sk","-4100104.htm","https://publications.europa.eu/code/sk/sk-4100104.htm","10.1.4-comma","10.1.4-comma",null,"https://style-guide.europa.eu/sk/content/-/isg/topic?identifier= 10.1.4-comma"]
["https://publications.europa.eu/code/","sk","-4100105.htm","https://publications.europa.eu/code/sk/sk-4100105.htm","10.1.5-brackets","10.1.5-brackets",null,"https://style-guide.europa.eu/sk/content/-/isg/topic?identifier= 10.1.5-brackets"]
["https://publications.europa.eu/code/","sk","-4100106.htm","https://publications.europa.eu/code/sk/sk-4100106.htm","10.1.6-quotation-marks","10.1.6-quotation-marks",null,"https://style-guide.europa.eu/sk/content/-/isg/topic?identifier= 10.1.6-quotation-marks"]
["https://publications.europa.eu/code/","sk","-4100107.htm","https://publications.europa.eu/code/sk/sk-4100107.htm","10.1.7-dashes","10.1.7-dashes",null,"https://style-guide.europa.eu/sk/content/-/isg/topic?identifier= 10.1.7-dashes"]
["https://publications.europa.eu/code/","sk","-4100108.htm","https://publications.europa.eu/code/sk/sk-4100108.htm","10.1.8-hyphen","10.1.8-hyphen",null,"https://style-guide.europa.eu/sk/content/-/isg/topic?identifier= 10.1.8-hyphen"]
["https://publications.europa.eu/code/","sk","-4100109.htm","https://publications.europa.eu/code/sk/sk-4100109.htm","10.1.9-ellipsis","10.1.9-ellipsis",null,"https://style-guide.europa.eu/sk/content/-/isg/topic?identifier= 10.1.9-ellipsis"]
["https://publications.europa.eu/code/","sk","-4100110.htm","https://publications.europa.eu/code/sk/sk-4100110.htm","10.1.10-forward-slash","10.1.10-forward-slash",null,"https://style-guide.europa.eu/sk/content/-/isg/topic?identifier= 10.1.10-forward-slash"]
["https://publications.europa.eu/code/","sk","-4100111.htm","https://publications.europa.eu/code/sk/sk-4100111.htm","10.1.11-percentages-degrees-minutes","10.1.11-percentages-degrees-minutes",null,"https://style-guide.europa.eu/sk/content/-/isg/topic?identifier= 10.1.11-percentages-degrees-minutes"]
["https://publications.europa.eu/code/","sk","-4100200.htm","https://publications.europa.eu/code/sk/sk-4100200.htm","10.2-writing-numbers-dates-time-telephone-numbers","10.2-writing-numbers-dates-time-telephone-numbers",null,"https://style-guide.europa.eu/sk/content/-/isg/topic?identifier= 10.2-writing-numbers-dates-time-telephone-numbers"]
["https://publications.europa.eu/code/","sk","-4100300.htm","https://publications.europa.eu/code/sk/sk-4100300.htm","10.3-upper-case","10.3-upper-case",null,"https://style-guide.europa.eu/sk/content/-/isg/topic?identifier= 10.3-upper-case"]
["https://publications.europa.eu/code/","sk","-4100400.htm","https://publications.europa.eu/code/sk/sk-4100400.htm","10.4-abbreviations","10.4-abbreviations",null,"https://style-guide.europa.eu/sk/content/-/isg/topic?identifier= 10.4-abbreviations"]
["https://publications.europa.eu/code/","sk","-4100500.htm","https://publications.europa.eu/code/sk/sk-4100500.htm","10.5-rhythmic-rule","10.5-rhythmic-rule",null,"https://style-guide.europa.eu/sk/content/-/isg/topic?identifier= 10.5-rhythmic-rule"]
["https://publications.europa.eu/code/","sk","-4100600.htm","https://publications.europa.eu/code/sk/sk-4100600.htm","10.6-plural-endings-in-nouns","10.6-plural-endings-in-nouns",null,"https://style-guide.europa.eu/sk/content/-/isg/topic?identifier= 10.6-plural-endings-in-nouns"]
["https://publications.europa.eu/code/","sk","-4100700.htm","https://publications.europa.eu/code/sk/sk-4100700.htm","10.7-writing-foreign-feminine-surnames","10.7-writing-foreign-feminine-surnames",null,"https://style-guide.europa.eu/sk/content/-/isg/topic?identifier= 10.7-writing-foreign-feminine-surnames"]
["https://publications.europa.eu/code/","sk","-4100800.htm","https://publications.europa.eu/code/sk/sk-4100800.htm","10.8-italics","10.8-italics",null,"https://style-guide.europa.eu/sk/content/-/isg/topic?identifier= 10.8-italics"]
["https://publications.europa.eu/code/","sk","-4110000.htm","https://publications.europa.eu/code/sk/sk-4110000.htm","11-reference-works","11-reference-works",null,"https://style-guide.europa.eu/sk/content/-/isg/topic?identifier= 11-reference-works"]
["https://publications.europa.eu/code/","sk","-5010100.htm","https://publications.europa.eu/code/sk/sk-5010100.htm","annex-b1-corrigenda","annex-b1-corrigenda",null,"https://style-guide.europa.eu/sk/content/-/isg/topic?identifier= annex-b1-corrigenda"]
["https://publications.europa.eu/code/","sk","-5010200.htm","https://publications.europa.eu/code/sk/sk-5010200.htm","annex-b2-miscellaneous","annex-b2-miscellaneous",null,"https://style-guide.europa.eu/sk/content/-/isg/topic?identifier= annex-b2-miscellaneous"]
["https://publications.europa.eu/code/","sk","-5010300.htm","https://publications.europa.eu/code/sk/sk-5010300.htm","annex-b3-eea-agreement-annexes-names","annex-b3-eea-agreement-annexes-names",null,"https://style-guide.europa.eu/sk/content/-/isg/topic?identifier= annex-b3-eea-agreement-annexes-names"]
["https://publications.europa.eu/code/","sl","-4000000.htm","https://publications.europa.eu/code/sl/sl-4000000.htm","part-four-publications-in-a-specific-language","part-four-publications-in-a-specific-language",null,"https://style-guide.europa.eu/sl/content/-/isg/topic?identifier= part-four-publications-in-a-specific-language"]
["https://publications.europa.eu/code/","sl","-4100000.htm","https://publications.europa.eu/code/sl/sl-4100000.htm","10-general","10-general",null,"https://style-guide.europa.eu/sl/content/-/isg/topic?identifier= 10-general"]
["https://publications.europa.eu/code/","sl","-4100100.htm","https://publications.europa.eu/code/sl/sl-4100100.htm","10.1-punctuation","10.1-punctuation",null,"https://style-guide.europa.eu/sl/content/-/isg/topic?identifier= 10.1-punctuation"]
["https://publications.europa.eu/code/","sl","-4100200.htm","https://publications.europa.eu/code/sl/sl-4100200.htm","10.2-verb","10.2-verb",null,"https://style-guide.europa.eu/sl/content/-/isg/topic?identifier= 10.2-verb"]
["https://publications.europa.eu/code/","sl","-4100300.htm","https://publications.europa.eu/code/sl/sl-4100300.htm","10.3-noun","10.3-noun",null,"https://style-guide.europa.eu/sl/content/-/isg/topic?identifier= 10.3-noun"]
["https://publications.europa.eu/code/","sl","-4100400.htm","https://publications.europa.eu/code/sl/sl-4100400.htm","10.4-upper-and-lower-case","10.4-upper-and-lower-case",null,"https://style-guide.europa.eu/sl/content/-/isg/topic?identifier= 10.4-upper-and-lower-case"]
["https://publications.europa.eu/code/","sl","-4100500.htm","https://publications.europa.eu/code/sl/sl-4100500.htm","10.5-date-and-time","10.5-date-and-time",null,"https://style-guide.europa.eu/sl/content/-/isg/topic?identifier= 10.5-date-and-time"]
["https://publications.europa.eu/code/","sl","-4100600.htm","https://publications.europa.eu/code/sl/sl-4100600.htm","10.6-italics","10.6-italics",null,"https://style-guide.europa.eu/sl/content/-/isg/topic?identifier= 10.6-italics"]
["https://publications.europa.eu/code/","sl","-4100700.htm","https://publications.europa.eu/code/sl/sl-4100700.htm","10.7-abbreviations","10.7-abbreviations",null,"https://style-guide.europa.eu/sl/content/-/isg/topic?identifier= 10.7-abbreviations"]
["https://publications.europa.eu/code/","sl","-4100800.htm","https://publications.europa.eu/code/sl/sl-4100800.htm","10.8-miscellaneous","10.8-miscellaneous",null,"https://style-guide.europa.eu/sl/content/-/isg/topic?identifier= 10.8-miscellaneous"]
["https://publications.europa.eu/code/","sl","-4110000.htm","https://publications.europa.eu/code/sl/sl-4110000.htm","11-reference-works","11-reference-works",null,"https://style-guide.europa.eu/sl/content/-/isg/topic?identifier= 11-reference-works"]
["https://publications.europa.eu/code/","sv","-4000000.htm","https://publications.europa.eu/code/sv/sv-4000000.htm","part-four-publications-in-a-specific-language","part-four-publications-in-a-specific-language",null,"https://style-guide.europa.eu/sv/content/-/isg/topic?identifier= part-four-publications-in-a-specific-language"]
["https://publications.europa.eu/code/","sv","-4100000.htm","https://publications.europa.eu/code/sv/sv-4100000.htm","10-text-design","10-text-design",null,"https://style-guide.europa.eu/sv/content/-/isg/topic?identifier= 10-text-design"]
["https://publications.europa.eu/code/","sv","-4100100.htm","https://publications.europa.eu/code/sv/sv-4100100.htm","10.1-spelling","10.1-spelling",null,"https://style-guide.europa.eu/sv/content/-/isg/topic?identifier= 10.1-spelling"]
["https://publications.europa.eu/code/","sv","-4100200.htm","https://publications.europa.eu/code/sv/sv-4100200.htm","10.2-hyphenation","10.2-hyphenation",null,"https://style-guide.europa.eu/sv/content/-/isg/topic?identifier= 10.2-hyphenation"]
["https://publications.europa.eu/code/","sv","-4100300.htm","https://publications.europa.eu/code/sv/sv-4100300.htm","10.3-plural-forms-and-definite-form","10.3-plural-forms-and-definite-form",null,"https://style-guide.europa.eu/sv/content/-/isg/topic?identifier= 10.3-plural-forms-and-definite-form"]
["https://publications.europa.eu/code/","sv","-4100400.htm","https://publications.europa.eu/code/sv/sv-4100400.htm","10.4-punctuation","10.4-punctuation",null,"https://style-guide.europa.eu/sv/content/-/isg/topic?identifier= 10.4-punctuation"]
["https://publications.europa.eu/code/","sv","-4100402.htm","https://publications.europa.eu/code/sv/sv-4100402.htm","10.4.2-full-stop","10.4.2-full-stop",null,"https://style-guide.europa.eu/sv/content/-/isg/topic?identifier= 10.4.2-full-stop"]
["https://publications.europa.eu/code/","sv","-4100403.htm","https://publications.europa.eu/code/sv/sv-4100403.htm","10.4.3-ellipsis","10.4.3-ellipsis",null,"https://style-guide.europa.eu/sv/content/-/isg/topic?identifier= 10.4.3-ellipsis"]
["https://publications.europa.eu/code/","sv","-4100404.htm","https://publications.europa.eu/code/sv/sv-4100404.htm","10.4.4-colon","10.4.4-colon",null,"https://style-guide.europa.eu/sv/content/-/isg/topic?identifier= 10.4.4-colon"]
["https://publications.europa.eu/code/","sv","-4100405.htm","https://publications.europa.eu/code/sv/sv-4100405.htm","10.4.5-semicolon","10.4.5-semicolon",null,"https://style-guide.europa.eu/sv/content/-/isg/topic?identifier= 10.4.5-semicolon"]
["https://publications.europa.eu/code/","sv","-4100406.htm","https://publications.europa.eu/code/sv/sv-4100406.htm","10.4.6-round-brackets","10.4.6-round-brackets",null,"https://style-guide.europa.eu/sv/content/-/isg/topic?identifier= 10.4.6-round-brackets"]
["https://publications.europa.eu/code/","sv","-4100407.htm","https://publications.europa.eu/code/sv/sv-4100407.htm","10.4.7-square-brackets ","10.4.7-square-brackets ",null,"https://style-guide.europa.eu/sv/content/-/isg/topic?identifier= 10.4.7-square-brackets "]
["https://publications.europa.eu/code/","sv","-4100408.htm","https://publications.europa.eu/code/sv/sv-4100408.htm","10.4.8-quotation-marks","10.4.8-quotation-marks",null,{"$f":"_xlfn.CONCAT(\"https://style-guide.europa.eu/\",B514,\"/content/-/isg/topic?identifier= \",E514)","v":"https://style-guide.europa.eu/sv/content/-/isg/topic?identifier= 10.4.8-quotation-marks"}]
["https://publications.europa.eu/code/","sv","-4100409.htm",{"$f":"_xlfn.CONCAT(A515,B515,\"/\",B515,C515)","v":"https://publications.europa.eu/code/sv/sv-4100409.htm"},"10.4.9-hyphen","10.4.9-hyphen",null,"https://style-guide.europa.eu/sv/content/-/isg/topic?identifier= 10.4.9-hyphen"]
["https://publications.europa.eu/code/","sv","-4100410.htm","https://publications.europa.eu/code/sv/sv-4100410.htm","10.4.10-en-dash-em-dash","10.4.10-en-dash-em-dash",null,"https://style-guide.europa.eu/sv/content/-/isg/topic?identifier= 10.4.10-en-dash-em-dash"]
["https://publications.europa.eu/code/","sv","-4100411.htm","https://publications.europa.eu/code/sv/sv-4100411.htm","10.4.11-forward-slash","10.4.11-forward-slash",null,"https://style-guide.europa.eu/sv/content/-/isg/topic?identifier= 10.4.11-forward-slash"]
["https://publications.europa.eu/code/","sv","-4100412.htm","https://publications.europa.eu/code/sv/sv-4100412.htm","10.4.12-diacritical-marks","10.4.12-diacritical-marks",null,"https://style-guide.europa.eu/sv/content/-/isg/topic?identifier= 10.4.12-diacritical-marks"]
["https://publications.europa.eu/code/","sv","-4100500.htm","https://publications.europa.eu/code/sv/sv-4100500.htm","10.5-upper-and-lower-case","10.5-upper-and-lower-case",null,"https://style-guide.europa.eu/sv/content/-/isg/topic?identifier= 10.5-upper-and-lower-case"]
["https://publications.europa.eu/code/","sv","-4100600.htm","https://publications.europa.eu/code/sv/sv-4100600.htm","10.6-numbers-and-dates","10.6-numbers-and-dates",null,"https://style-guide.europa.eu/sv/content/-/isg/topic?identifier= 10.6-numbers-and-dates"]
["https://publications.europa.eu/code/","sv","-4100700.htm","https://publications.europa.eu/code/sv/sv-4100700.htm","10.7-abbreviations","10.7-abbreviations",null,"https://style-guide.europa.eu/sv/content/-/isg/topic?identifier= 10.7-abbreviations"]
["https://publications.europa.eu/code/","sv","-4100800.htm","https://publications.europa.eu/code/sv/sv-4100800.htm","10.8-initialisms-acronyms-and-letter-codes","10.8-initialisms-acronyms-and-letter-codes",null,"https://style-guide.europa.eu/sv/content/-/isg/topic?identifier= 10.8-initialisms-acronyms-and-letter-codes"]
["https://publications.europa.eu/code/","sv","-4110000.htm","https://publications.europa.eu/code/sv/sv-4110000.htm","11-reference-works","11-reference-works",null,"https://style-guide.europa.eu/sv/content/-/isg/topic?identifier= 11-reference-works"]

{"sheet":"SYSTEM","index":3,"n_rows":24,"n_cols":1,"rows_kept":24,"cut":false,"hidden":true,"merged":[]}
["bg"]
["cs"]
["da"]
["de"]
["el"]
["en"]
["es"]
["et"]
["fi"]
["fr"]
["ga"]
["hr"]
["hu"]
["it"]
["lt"]
["lv"]
["mt"]
["nl"]
["pl"]
["pt"]
["ro"]
["sk"]
["sl"]
["sv"]